Workbook

Sheet Instructions
A2: COLOR IN 30 PAGES SPREADSHEET
B4: This Excel spreadsheet is part of the preliminary work for "Color In 30 Pages".
B5: Each worksheet created the Figures in the book. Accordingly, they are named for them.
B6: You may have to mouse around each worksheet for the actual Figure, but they are there.
B8: Within each worksheet, each cell has a formula. Each formula is rooted in grade school algebra.
B9: If you don't know Excel or spreadsheets, learn. It's not difficult, and it is a good skill to have in modern arts.
B10: Once you've figured it out, noodle your own art forms. Once done, email me for future versions. I will credit you.
B12: FYI: This worksheet includes Visual Basic "macros". So unless you tell your spreadsheet to enable macros, they won't work.
B13: If you don't know how to enable macros for Excel, then Google it (or Duck Duck Go, or Bing or whatever). It's a one-stop push button.
B15: Copyright © 2024 E.T.T.

Sheet Figure 4.
C1: hex | D1: r | E1: g | F1: b | G1: dec | H1: rr | I1: rrr | J1: gg | K1: ggg | L1: bb | M1: bbb | N1: primary | O1: secondary | P1: tertiary
A2: RED | C2: ff0000 | D2: =I2 -> 255 | E2: =K2 -> 0 | F2: =M2 -> 0 | G2: =HEX2DEC(C2) -> 16711680 | H2: =G2/256^2 -> 255 | I2: =INT(H2) -> 255 | J2: =(H2-I2)*256 -> 0 | K2: =INT(J2) -> 0 | L2: =J2-K2 -> 0 | M2: =L2*256 -> 0 | N2: x
A3: RED-ORANGE | C3: FF4500 | D3: 255 | E3: 100 | F3: 0 | G3: 16729344 | H3: 255.2695312 | I3: 255 | J3: 69 | K3: 69 | L3: 0 | M3: 0 | P3: x
A4: ORANGE | C4: FFA500 | D4: =I4 -> 255 | E4: =K4 -> 165 | F4: =M4 -> 0 | G4: =HEX2DEC(C4) -> 16753920 | H4: =G4/256^2 -> 255.6445312 | I4: =INT(H4) -> 255 | J4: =(H4-I4)*256 -> 165 | K4: =INT(J4) -> 165 | L4: =J4-K4 -> 0 | M4: =L4*256 -> 0 | O4: x
A5: ORANGE-YELLOW | C5: =DEC2HEX(($D5*65536)+($E5*256)+$F5) -> FFD200 | D5: 255 | E5: 210 | F5: 0 | P5: x
A6: YELLOW | C6: ffff00 | D6: =I6 -> 255 | E6: =K6 -> 255 | F6: =M6 -> 0 | G6: =HEX2DEC(C6) -> 16776960 | H6: =G6/256^2 -> 255.9960938 | I6: =INT(H6) -> 255 | J6: =(H6-I6)*256 -> 255 | K6: =INT(J6) -> 255 | L6: =J6-K6 -> 0 | M6: =L6*256 -> 0 | N6: x
A7: GREEN-YELLOW | C7: ADFF2F | D7: 173 | E7: 255 | F7: 47 | G7: =HEX2DEC(C7) -> 11403055 | H7: 173.9968109 | I7: 173 | J7: 255.1835938 | K7: 255 | L7: 0.18359375 | M7: 47 | P7: x | R7: NAME | S7: COLOR | T7: LABEL
A8: GREEN | C8: 00ff00 | D8: =I8 -> 0 | E8: =K8 -> 255 | F8: =M8 -> 0 | G8: =HEX2DEC(C8) -> 65280 | H8: =G8/256^2 -> 0.99609375 | I8: =INT(H8) -> 0 | J8: =(H8-I8)*256 -> 255 | K8: =INT(J8) -> 255 | L8: =J8-K8 -> 0 | M8: =L8*256 -> 0 | O8: x | R8: RED | T8: PRIMARY
A9: GREEN_BLUE | C9: =DEC2HEX(($D9*65536)+($E9*256)+$F9) -> A5D2 | D9: 0 | E9: 165 | F9: 210 | P9: x | R9: RED-ORANGE | T9: TERTIARY
A10: BLUE | C10: 0000ff | D10: =I10 -> 0 | E10: =K10 -> 0 | F10: =M10 -> 255 | G10: =HEX2DEC(C10) -> 255 | H10: =G10/256^2 -> 0.003890991211 | I10: =INT(H10) -> 0 | J10: =(H10-I10)*256 -> 0.99609375 | K10: =INT(J10) -> 0 | L10: =J10-K10 -> 0.99609375 | M10: =L10*256 -> 255 | N10: x | R10: ORANGE | T10: SECONDARY
A11: BLUE-VIOLET | C11: 8A2BE2 | D11: 138 | E11: 43 | F11: 226 | G11: 9055202 | H11: 138.1714172 | I11: 138 | J11: 43.8828125 | K11: 43 | L11: 0.8828125 | M11: 226 | P11: x | R11: ORANGE-YELLOW | T11: TERTIARY
A12: VIOLET | C12: ff00ff | D12: =I12 -> 255 | E12: =K12 -> 0 | F12: =M12 -> 255 | G12: =HEX2DEC(C12) -> 16711935 | H12: =G12/256^2 -> 255.003891 | I12: =INT(H12) -> 255 | J12: =(H12-I12)*256 -> 0.99609375 | K12: =INT(J12) -> 0 | L12: =J12-K12 -> 0.99609375 | M12: =L12*256 -> 255 | O12: x | R12: YELLOW | T12: PRIMARY
A13: VIOLET-RED | C13: =DEC2HEX(($D13*65536)+($E13*256)+$F13) -> FF00A5 | D13: 255 | F13: 165 | P13: x | R13: GREEN-YELLOW | T13: TERTIARY
R14: GREEN | T14: SECONDARY
R15: GREEN_BLUE | T15: TERTIARY
R16: BLUE | T16: PRIMARY
R17: BLUE-VIOLET | T17: TERTIARY
A18: CYAN | C18: 00ffff | R18: VIOLET | T18: SECONDARY
A19: YELLOW-GREEN | C19: 9ACD32 | D19: =I19 -> 154 | E19: =K19 -> 205 | F19: =M19 -> 50 | G19: =HEX2DEC(C19) -> 10145074 | H19: =G19/256^2 -> 154.8015442 | I19: =INT(H19) -> 154 | J19: =(H19-I19)*256 -> 205.1953125 | K19: =INT(J19) -> 205 | L19: =J19-K19 -> 0.1953125 | M19: =L19*256 -> 50 | R19: VIOLET-RED | T19: TERTIARY
C20: =DEC2HEX(($D20*65536)+($E20*256)+$F20) -> 0 | D20: 0 | E20: 0 | F20: 0

Sheet Figure 7.
A1: NAME | C1: HTML | D1: R | E1: G | F1: B | G1: Pct | H1: Increments | K1: Results | N1: Boundaries | Q1: RGB | R1: CMY
A2: RED | C2: =DEC2HEX(($D2*65536)+($E2*256)+$F2) -> FF0000 | D2: 255 | E2: 0 | F2: 0 | Q2: R
C3: =DEC2HEX(($D3*65536)+($E3*256)+$F3) -> FF003F | D3: =IF(N3<0,0,N3) -> 255 | E3: =IF(O3<0,0,O3) -> 0 | F3: =IF(P3<0,0,P3) -> 63 | G3: 25 | H3: =ROUNDDOWN($G3/100*(D$6-D$2),0) -> 0 | I3: =ROUNDDOWN($G3/100*(E$6-E$2),0) -> 0 | J3: 63 | K3: =D$2+H3 -> 255 | L3: =E$2+I3 -> 0 | M3: =F$2+J3 -> 63 | N3: =IF(K3>255,255,K3) -> 255 | O3: 0 | P3: 63 | S3: RED
C4: FF007F | D4: =IF(N4<0,0,N4) -> 255 | E4: 0 | F4: 127 | G4: 50 | H4: =ROUNDDOWN($G4/100*(D$6-D$2),0) -> 0 | I4: 0 | J4: 127 | K4: =D$2+H4 -> 255 | L4: 0 | M4: 127 | N4: 255 | O4: 0 | P4: 127
C5: FF00BF | D5: 255 | E5: 0 | F5: 191 | G5: 75 | H5: 0 | I5: 0 | J5: 191 | K5: 255 | L5: 0 | M5: 191 | N5: 255 | O5: 0 | P5: 191
A6: MAGENTA | C6: FF00FF | D6: 255 | E6: 0 | F6: 255 | R6: M
C7: C000FF | D7: =IF(N7<0,0,N7) -> 192 | E7: =IF(O7<0,0,O7) -> 0 | F7: =IF(P7<0,0,P7) -> 255 | G7: 25 | H7: =ROUNDDOWN($G7/100*(D$10-D$6),0) -> -63 | I7: =ROUNDDOWN($G7/100*(E$10-E$6),0) -> 0 | J7: 0 | K7: =D$6+H7 -> 192 | L7: =E$6+I7 -> 0 | M7: 255 | N7: =IF(K7>255,255,K7) -> 192 | O7: 0 | P7: 255 | S7: MAGENTA
C8: 8000FF | D8: =IF(N8<0,0,N8) -> 128 | E8: 0 | F8: 255 | G8: 50 | H8: =ROUNDDOWN($G8/100*(D$10-D$6),0) -> -127 | I8: 0 | J8: 0 | K8: =D$6+H8 -> 128 | L8: 0 | M8: 255 | N8: 128 | O8: 0 | P8: 255
C9: 4000FF | D9: 64 | E9: 0 | F9: 255 | G9: 75 | H9: -191 | I9: 0 | J9: 0 | K9: 64 | L9: 0 | M9: 255 | N9: 64 | O9: 0 | P9: 255
A10: BLUE | C10: =DEC2HEX(($D10*65536)+($E10*256)+$F10) -> FF | D10: 0 | E10: 0 | F10: 255 | Q10: B
C11: 3FFF | D11: =IF(N11<0,0,N11) -> 0 | E11: =IF(O11<0,0,O11) -> 63 | F11: =IF(P11<0,0,P11) -> 255 | G11: 25 | H11: =ROUNDDOWN($G11/100*(D$14-D$10),0) -> 0 | I11: =ROUNDDOWN($G11/100*(E$14-E$10),0) -> 63 | J11: 0 | K11: =D$10+H11 -> 0 | L11: =E$10+I11 -> 63 | M11: 255 | N11: =IF(K11>255,255,K11) -> 0 | O11: 63 | P11: 255 | S11: BLUE
C12: 7FFF | D12: =IF(N12<0,0,N12) -> 0 | E12: 127 | F12: 255 | G12: 50 | H12: =ROUNDDOWN($G12/100*(D$14-D$10),0) -> 0 | I12: 127 | J12: 0 | K12: =D$10+H12 -> 0 | L12: 127 | M12: 255 | N12: 0 | O12: 127 | P12: 255
C13: CEFF | D13: 0 | E13: 206 | F13: 255 | G13: 81 | H13: 0 | I13: 206 | J13: 0 | K13: 0 | L13: 206 | M13: 255 | N13: 0 | O13: 206 | P13: 255
A14: CYAN | C14: FFFF | D14: 0 | E14: 255 | F14: 255 | R14: C
C15: FFC0 | D15: =IF(N15<0,0,N15) -> 0 | E15: =IF(O15<0,0,O15) -> 255 | F15: =IF(P15<0,0,P15) -> 192 | G15: 25 | H15: =ROUNDDOWN($G15/100*(D$18-D$14),0) -> 0 | I15: =ROUNDDOWN($G15/100*(E$18-E$14),0) -> 0 | J15: -63 | K15: =D$14+H15 -> 0 | L15: =E$14+I15 -> 255 | M15: 192 | N15: =IF(K15>255,255,K15) -> 0 | O15: 255 | P15: 192 | S15: CYAN
C16: FF80 | D16: =IF(N16<0,0,N16) -> 0 | E16: 255 | F16: 128 | G16: 50 | H16: =ROUNDDOWN($G16/100*(D$18-D$14),0) -> 0 | I16: 0 | J16: -127 | K16: =D$14+H16 -> 0 | L16: 255 | M16: 128 | N16: 0 | O16: 255 | P16: 128
C17: FF40 | D17: 0 | E17: 255 | F17: 64 | G17: 75 | H17: 0 | I17: 0 | J17: -191 | K17: 0 | L17: 255 | M17: 64 | N17: 0 | O17: 255 | P17: 64
A18: GREEN | C18: FF00 | D18: 0 | E18: 255 | F18: 0 | Q18: G
C19: 3FFF00 | D19: =IF(N19<0,0,N19) -> 63 | E19: =IF(O19<0,0,O19) -> 255 | F19: =IF(P19<0,0,P19) -> 0 | G19: 25 | H19: =ROUNDDOWN($G19/100*(D$22-D$18),0) -> 63 | I19: =ROUNDDOWN($G19/100*(E$22-E$18),0) -> 0 | J19: 0 | K19: =D$18+H19 -> 63 | L19: =E$18+I19 -> 255 | M19: 0 | N19: =IF(K19>255,255,K19) -> 63 | O19: 255 | P19: 0 | S19: GREEN
C20: 7FFF00 | D20: =IF(N20<0,0,N20) -> 127 | E20: 255 | F20: 0 | G20: 50 | H20: =ROUNDDOWN($G20/100*(D$22-D$18),0) -> 127 | I20: 0 | J20: 0 | K20: =D$18+H20 -> 127 | L20: 255 | M20: 0 | N20: 127 | O20: 255 | P20: 0
C21: BFFF00 | D21: 191 | E21: 255 | F21: 0 | G21: 75 | H21: 191 | I21: 0 | J21: 0 | K21: 191 | L21: 255 | M21: 0 | N21: 191 | O21: 255 | P21: 0
A22: YELLOW | C22: FFFF00 | D22: 255 | E22: 255 | F22: 0 | R22: Y
C23: FFCC00 | D23: =IF(N23<0,0,N23) -> 255 | E23: =IF(O23<0,0,O23) -> 204 | F23: =IF(P23<0,0,P23) -> 0 | G23: 20 | H23: =ROUNDDOWN($G23/100*(D$26-D$22),0) -> 0 | I23: =ROUNDDOWN($G23/100*(E$26-E$22),0) -> -51 | J23: 0 | K23: =D$22+H23 -> 255 | L23: =E$22+I23 -> 204 | M23: 0 | N23: =IF(K23>255,255,K23) -> 255 | O23: 204 | P23: 0 | S23: YELLOW
C24: FF8000 | D24: =IF(N24<0,0,N24) -> 255 | E24: 128 | F24: 0 | G24: 50 | H24: =ROUNDDOWN($G24/100*(D$26-D$22),0) -> 0 | I24: -127 | J24: 0 | K24: =D$22+H24 -> 255 | L24: 128 | M24: 0 | N24: 255 | O24: 128 | P24: 0
C25: FF4000 | D25: 255 | E25: 64 | F25: 0 | G25: 75 | H25: 0 | I25: -191 | J25: 0 | K25: 255 | L25: 64 | M25: 0 | N25: 255 | O25: 64 | P25: 0
A26: RED | C26: =DEC2HEX(($D26*65536)+($E26*256)+$F26) -> FF0000 | D26: 255 | E26: 0 | F26: 0 | Q26: R
S27: RED
A29: from Linear tab | S29: NAME | T29: COLOR | U29: LABEL
A30: RED | C30: ff0000 | D30: =I30 -> 255 | E30: =K30 -> 0 | F30: =M30 -> 0 | G30: =HEX2DEC(C30) -> 16711680 | H30: =G30/256^2 -> 255 | I30: =INT(H30) -> 255 | J30: =(H30-I30)*256 -> 0 | K30: =INT(J30) -> 0 | L30: =J30-K30 -> 0 | M30: =L30*256 -> 0 | N30: x | S30: RED | U30: PRIMARY
A31: RED-ORANGE | C31: FF4500 | D31: =I31 -> 255 | E31: 100 | F31: =M31 -> 0 | G31: =HEX2DEC(C31) -> 16729344 | H31: =G31/256^2 -> 255.2695312 | I31: =INT(H31) -> 255 | J31: =(H31-I31)*256 -> 69 | K31: =INT(J31) -> 69 | L31: =J31-K31 -> 0 | M31: =L31*256 -> 0 | P31: x | S31: RED-ORANGE | U31: TERTIARY
A32: ORANGE | C32: FFA500 | D32: =I32 -> 255 | E32: =K32 -> 165 | F32: =M32 -> 0 | G32: =HEX2DEC(C32) -> 16753920 | H32: =G32/256^2 -> 255.6445312 | I32: =INT(H32) -> 255 | J32: =(H32-I32)*256 -> 165 | K32: =INT(J32) -> 165 | L32: =J32-K32 -> 0 | M32: =L32*256 -> 0 | O32: x | S32: ORANGE | U32: SECONDARY
A33: ORANGE-YELLOW | C33: =DEC2HEX(($D33*65536)+($E33*256)+$F33) -> FFD200 | D33: 255 | E33: 210 | F33: 0 | P33: x | S33: ORANGE-YELLOW | U33: TERTIARY
A34: YELLOW | C34: ffff00 | D34: =I34 -> 255 | E34: =K34 -> 255 | F34: =M34 -> 0 | G34: =HEX2DEC(C34) -> 16776960 | H34: =G34/256^2 -> 255.9960938 | I34: =INT(H34) -> 255 | J34: =(H34-I34)*256 -> 255 | K34: =INT(J34) -> 255 | L34: =J34-K34 -> 0 | M34: =L34*256 -> 0 | N34: x | S34: YELLOW | U34: PRIMARY
A35: GREEN-YELLOW | C35: ADFF2F | D35: 173 | E35: 255 | F35: 47 | G35: =HEX2DEC(C35) -> 11403055 | H35: 173.9968109 | I35: 173 | J35: 255.1835938 | K35: 255 | L35: 0.18359375 | M35: 47 | P35: x | S35: GREEN-YELLOW | U35: TERTIARY
A36: GREEN | C36: 00ff00 | D36: 0 | E36: 255 | F36: 0 | G36: =HEX2DEC(C36) -> 65280 | H36: 0.99609375 | I36: 0 | J36: 255 | K36: 255 | L36: 0 | M36: 0 | O36: x | S36: GREEN | U36: SECONDARY
A37: GREEN_BLUE | C37: =DEC2HEX(($D37*65536)+($E37*256)+$F37) -> A5D2 | D37: 0 | E37: 165 | F37: 210 | P37: x | S37: GREEN_BLUE | U37: TERTIARY
A38: BLUE | C38: 0000ff | D38: =I38 -> 0 | E38: =K38 -> 0 | F38: =M38 -> 255 | G38: =HEX2DEC(C38) -> 255 | H38: =G38/256^2 -> 0.003890991211 | I38: =INT(H38) -> 0 | J38: =(H38-I38)*256 -> 0.99609375 | K38: =INT(J38) -> 0 | L38: =J38-K38 -> 0.99609375 | M38: =L38*256 -> 255 | N38: x | S38: BLUE | U38: PRIMARY
A39: BLUE-VIOLET | C39: 8A2BE2 | D39: 138 | E39: 43 | F39: 226 | G39: 9055202 | H39: 138.1714172 | I39: 138 | J39: 43.8828125 | K39: 43 | L39: 0.8828125 | M39: 226 | P39: x | S39: BLUE-VIOLET | U39: TERTIARY
A40: VIOLET | C40: ff00ff | D40: 255 | E40: 0 | F40: 255 | G40: 16711935 | H40: 255.003891 | I40: 255 | J40: 0.99609375 | K40: 0 | L40: 0.99609375 | M40: 255 | O40: x | S40: VIOLET | U40: SECONDARY
A41: VIOLET-RED | C41: =DEC2HEX(($D41*65536)+($E41*256)+$F41) -> FF00A5 | D41: 255 | F41: 165 | P41: x | S41: VIOLET-RED | U41: TERTIARY
I44: 0 | J44: 0 | K44: 0 | L44: 0 | M44: 25 | N44: 25 | O44: 25 | P44: 25 | Q44: 50 | R44: 50 | S44: 50 | T44: 50 | U44: 75 | V44: 75 | W44: 75 | X44: 75 | Y44: 100 | Z44: 100 | AA44: 100 | AB44: 100
A45: RED | C45: =DEC2HEX(($D45*65536)+($E45*256)+$F45) -> FF0000 | D45: 255 | E45: 0 | F45: 0 | J45: =ROUNDDOWN($D45*(J$44/100),0) -> 0 | K45: =ROUNDDOWN($E45*(K$44/100),0) -> 0 | L45: =ROUNDDOWN($F45*(L$44/100),0) -> 0 | N45: =ROUNDDOWN($D45*(N$44/100),0) -> 63 | O45: =ROUNDDOWN($E45*(O$44/100),0) -> 0 | P45: =ROUNDDOWN($F45*(P$44/100),0) -> 0 | R45: =ROUNDDOWN($D45*(R$44/100),0) -> 127 | S45: =ROUNDDOWN($E45*(S$44/100),0) -> 0 | T45: =ROUNDDOWN($F45*(T$44/100),0) -> 0 | V45: =ROUNDDOWN($D45*(V$44/100),0) -> 191 | W45: =ROUNDDOWN($E45*(W$44/100),0) -> 0 | X45: =ROUNDDOWN($F45*(X$44/100),0) -> 0 | Z45: =ROUNDDOWN($D45*(Z$44/100),0) -> 255 | AA45: =ROUNDDOWN($E45*(AA$44/100),0) -> 0 | AB45: =ROUNDDOWN($F45*(AB$44/100),0) -> 0
C46: =DEC2HEX(($D46*65536)+($E46*256)+$F46) -> FF003F | D46: 255 | E46: 0 | F46: 63 | G46: 25 | J46: =ROUNDDOWN($D46*(J$44/100),0) -> 0 | K46: =ROUNDDOWN($E46*(K$44/100),0) -> 0 | L46: =ROUNDDOWN($F46*(L$44/100),0) -> 0 | N46: =ROUNDDOWN($D46*(N$44/100),0) -> 63 | O46: =ROUNDDOWN($E46*(O$44/100),0) -> 0 | P46: =ROUNDDOWN($F46*(P$44/100),0) -> 15 | R46: =ROUNDDOWN($D46*(R$44/100),0) -> 127 | S46: =ROUNDDOWN($E46*(S$44/100),0) -> 0 | T46: =ROUNDDOWN($F46*(T$44/100),0) -> 31 | V46: =ROUNDDOWN($D46*(V$44/100),0) -> 191 | W46: =ROUNDDOWN($E46*(W$44/100),0) -> 0 | X46: =ROUNDDOWN($F46*(X$44/100),0) -> 47 | Z46: =ROUNDDOWN($D46*(Z$44/100),0) -> 255 | AA46: =ROUNDDOWN($E46*(AA$44/100),0) -> 0 | AB46: =ROUNDDOWN($F46*(AB$44/100),0) -> 63
C47: FF007F | D47: 255 | E47: 0 | F47: 127 | G47: 50 | J47: 0 | K47: 0 | L47: 0 | N47: 63 | O47: 0 | P47: 31 | R47: 127 | S47: 0 | T47: 63 | V47: 191 | W47: 0 | X47: 95 | Z47: 255 | AA47: 0 | AB47: 127
C48: FF00BF | D48: 255 | E48: 0 | F48: 191 | G48: 75 | J48: 0 | K48: 0 | L48: 0 | N48: 63 | O48: 0 | P48: 47 | R48: 127 | S48: 0 | T48: 95 | V48: 191 | W48: 0 | X48: 143 | Z48: 255 | AA48: 0 | AB48: 191
A49: MAGENTA | C49: FF00FF | D49: 255 | E49: 0 | F49: 255 | J49: 0 | K49: 0 | L49: 0 | N49: 63 | O49: 0 | P49: 63 | R49: 127 | S49: 0 | T49: 127 | V49: 191 | W49: 0 | X49: 191 | Z49: 255 | AA49: 0 | AB49: 255
C50: C000FF | D50: 192 | E50: 0 | F50: 255 | G50: 25 | J50: 0 | K50: 0 | L50: 0 | N50: 48 | O50: 0 | P50: 63 | R50: 96 | S50: 0 | T50: 127 | V50: 144 | W50: 0 | X50: 191 | Z50: 192 | AA50: 0 | AB50: 255
C51: 8000FF | D51: 128 | E51: 0 | F51: 255 | G51: 50 | J51: 0 | K51: 0 | L51: 0 | N51: 32 | O51: 0 | P51: 63 | R51: 64 | S51: 0 | T51: 127 | V51: 96 | W51: 0 | X51: 191 | Z51: 128 | AA51: 0 | AB51: 255
C52: 4000FF | D52: 64 | E52: 0 | F52: 255 | G52: 75 | J52: 0 | K52: 0 | L52: 0 | N52: 16 | O52: 0 | P52: 63 | R52: 32 | S52: 0 | T52: 127 | V52: 48 | W52: 0 | X52: 191 | Z52: 64 | AA52: 0 | AB52: 255
A53: BLUE | C53: =DEC2HEX(($D53*65536)+($E53*256)+$F53) -> FF | D53: 0 | E53: 0 | F53: 255 | J53: 0 | K53: 0 | L53: 0 | N53: 0 | O53: 0 | P53: 63 | R53: 0 | S53: 0 | T53: 127 | V53: 0 | W53: 0 | X53: 191 | Z53: 0 | AA53: 0 | AB53: 255
C54: 3FFF | D54: 0 | E54: 63 | F54: 255 | G54: 25 | J54: 0 | K54: 0 | L54: 0 | N54: 0 | O54: 15 | P54: 63 | R54: 0 | S54: 31 | T54: 127 | V54: 0 | W54: 47 | X54: 191 | Z54: 0 | AA54: 63 | AB54: 255
C55: 7FFF | D55: 0 | E55: 127 | F55: 255 | G55: 50 | J55: 0 | K55: 0 | L55: 0 | N55: 0 | O55: 31 | P55: 63 | R55: 0 | S55: 63 | T55: 127 | V55: 0 | W55: 95 | X55: 191 | Z55: 0 | AA55: 127 | AB55: 255
C56: CEFF | D56: 0 | E56: 206 | F56: 255 | G56: 81 | J56: 0 | K56: 0 | L56: 0 | N56: 0 | O56: 51 | P56: 63 | R56: 0 | S56: 103 | T56: 127 | V56: 0 | W56: 154 | X56: 191 | Z56: 0 | AA56: 206 | AB56: 255
A57: CYAN | C57: FFFF | D57: 0 | E57: 255 | F57: 255 | J57: 0 | K57: 0 | L57: 0 | N57: 0 | O57: 63 | P57: 63 | R57: 0 | S57: 127 | T57: 127 | V57: 0 | W57: 191 | X57: 191 | Z57: 0 | AA57: 255 | AB57: 255
C58: FFC0 | D58: 0 | E58: 255 | F58: 192 | G58: 25 | J58: 0 | K58: 0 | L58: 0 | N58: 0 | O58: 63 | P58: 48 | R58: 0 | S58: 127 | T58: 96 | V58: 0 | W58: 191 | X58: 144 | Z58: 0 | AA58: 255 | AB58: 192
C59: FF80 | D59: 0 | E59: 255 | F59: 128 | G59: 50 | J59: 0 | K59: 0 | L59: 0 | N59: 0 | O59: 63 | P59: 32 | R59: 0 | S59: 127 | T59: 64 | V59: 0 | W59: 191 | X59: 96 | Z59: 0 | AA59: 255 | AB59: 128
C60: FF40 | D60: 0 | E60: 255 | F60: 64 | G60: 75 | J60: 0 | K60: 0 | L60: 0 | N60: 0 | O60: 63 | P60: 16 | R60: 0 | S60: 127 | T60: 32 | V60: 0 | W60: 191 | X60: 48 | Z60: 0 | AA60: 255 | AB60: 64
A61: GREEN | C61: FF00 | D61: 0 | E61: 255 | F61: 0 | J61: 0 | K61: 0 | L61: 0 | N61: 0 | O61: 63 | P61: 0 | R61: 0 | S61: 127 | T61: 0 | V61: 0 | W61: 191 | X61: 0 | Z61: 0 | AA61: 255 | AB61: 0
C62: 3FFF00 | D62: 63 | E62: 255 | F62: 0 | G62: 25 | J62: 0 | K62: 0 | L62: 0 | N62: 15 | O62: 63 | P62: 0 | R62: 31 | S62: 127 | T62: 0 | V62: 47 | W62: 191 | X62: 0 | Z62: 63 | AA62: 255 | AB62: 0
C63: 7FFF00 | D63: 127 | E63: 255 | F63: 0 | G63: 50 | J63: 0 | K63: 0 | L63: 0 | N63: 31 | O63: 63 | P63: 0 | R63: 63 | S63: 127 | T63: 0 | V63: 95 | W63: 191 | X63: 0 | Z63: 127 | AA63: 255 | AB63: 0
C64: BFFF00 | D64: 191 | E64: 255 | F64: 0 | G64: 75 | J64: 0 | K64: 0 | L64: 0 | N64: 47 | O64: 63 | P64: 0 | R64: 95 | S64: 127 | T64: 0 | V64: 143 | W64: 191 | X64: 0 | Z64: 191 | AA64: 255 | AB64: 0
A65: YELLOW | C65: FFFF00 | D65: 255 | E65: 255 | F65: 0 | J65: 0 | K65: 0 | L65: 0 | N65: 63 | O65: 63 | P65: 0 | R65: 127 | S65: 127 | T65: 0 | V65: 191 | W65: 191 | X65: 0 | Z65: 255 | AA65: 255 | AB65: 0
C66: FFCC00 | D66: 255 | E66: 204 | F66: 0 | G66: 20 | J66: 0 | K66: 0 | L66: 0 | N66: 63 | O66: 51 | P66: 0 | R66: 127 | S66: 102 | T66: 0 | V66: 191 | W66: 153 | X66: 0 | Z66: 255 | AA66: 204 | AB66: 0
C67: FF8000 | D67: 255 | E67: 128 | F67: 0 | G67: 50 | J67: 0 | K67: 0 | L67: 0 | N67: 63 | O67: 32 | P67: 0 | R67: 127 | S67: 64 | T67: 0 | V67: 191 | W67: 96 | X67: 0 | Z67: 255 | AA67: 128 | AB67: 0
C68: FF4000 | D68: 255 | E68: 64 | F68: 0 | G68: 75 | J68: 0 | K68: 0 | L68: 0 | N68: 63 | O68: 16 | P68: 0 | R68: 127 | S68: 32 | T68: 0 | V68: 191 | W68: 48 | X68: 0 | Z68: 255 | AA68: 64 | AB68: 0
A69: RED | C69: =DEC2HEX(($D69*65536)+($E69*256)+$F69) -> FF0000 | D69: 255 | E69: 0 | F69: 0 | J69: 0 | K69: 0 | L69: 0 | N69: 63 | O69: 0 | P69: 0 | R69: 127 | S69: 0 | T69: 0 | V69: 191 | W69: 0 | X69: 0 | Z69: 255 | AA69: 0 | AB69: 0
A72: Each column (% amount) represents the additive affect of its row upon the base color BLAC(K)
A73: HUE | B73: Start | C73: BLAC(K) | D73: 0.25 | E73: 0.5 | F73: 0.75 | G73: 1 | H73: End
A74: (R)ED | H74: RED
A78: (M)AGENTA | H78: MAGENTA
A82: (B)LUE | H82: BLUE
A86: (C)YAN | H86: CYAN
A90: (G)REEN | H90: GREEN
A94: (Y)ELLOW | H94: YELLOW
A98: (R)ED | H98: RED

Sheet Figure 8.
A1: NAME | C1: HTML | D1: R | E1: G | F1: B | G1: Pct | H1: Increments | K1: Results | N1: Boundaries | Q1: RGB | R1: CMY
A2: RED | C2: =DEC2HEX(($D2*65536)+($E2*256)+$F2) -> FF0000 | D2: 255 | E2: 0 | F2: 0 | Q2: R
C3: =DEC2HEX(($D3*65536)+($E3*256)+$F3) -> FF003F | D3: =IF(N3<0,0,N3) -> 255 | E3: =IF(O3<0,0,O3) -> 0 | F3: =IF(P3<0,0,P3) -> 63 | G3: 25 | H3: =ROUNDDOWN($G3/100*(D$6-D$2),0) -> 0 | I3: =ROUNDDOWN($G3/100*(E$6-E$2),0) -> 0 | J3: 63 | K3: =D$2+H3 -> 255 | L3: =E$2+I3 -> 0 | M3: =F$2+J3 -> 63 | N3: =IF(K3>255,255,K3) -> 255 | O3: 0 | P3: 63 | S3: RED
C4: FF007F | D4: =IF(N4<0,0,N4) -> 255 | E4: 0 | F4: 127 | G4: 50 | H4: =ROUNDDOWN($G4/100*(D$6-D$2),0) -> 0 | I4: 0 | J4: 127 | K4: =D$2+H4 -> 255 | L4: 0 | M4: 127 | N4: 255 | O4: 0 | P4: 127
C5: FF00BF | D5: 255 | E5: 0 | F5: 191 | G5: 75 | H5: 0 | I5: 0 | J5: 191 | K5: 255 | L5: 0 | M5: 191 | N5: 255 | O5: 0 | P5: 191
A6: MAGENTA | C6: FF00FF | D6: 255 | E6: 0 | F6: 255 | R6: M
C7: C000FF | D7: =IF(N7<0,0,N7) -> 192 | E7: =IF(O7<0,0,O7) -> 0 | F7: =IF(P7<0,0,P7) -> 255 | G7: 25 | H7: =ROUNDDOWN($G7/100*(D$10-D$6),0) -> -63 | I7: =ROUNDDOWN($G7/100*(E$10-E$6),0) -> 0 | J7: 0 | K7: =D$6+H7 -> 192 | L7: =E$6+I7 -> 0 | M7: 255 | N7: =IF(K7>255,255,K7) -> 192 | O7: 0 | P7: 255 | S7: MAGENTA
C8: 8000FF | D8: =IF(N8<0,0,N8) -> 128 | E8: 0 | F8: 255 | G8: 50 | H8: =ROUNDDOWN($G8/100*(D$10-D$6),0) -> -127 | I8: 0 | J8: 0 | K8: =D$6+H8 -> 128 | L8: 0 | M8: 255 | N8: 128 | O8: 0 | P8: 255
C9: 4000FF | D9: 64 | E9: 0 | F9: 255 | G9: 75 | H9: -191 | I9: 0 | J9: 0 | K9: 64 | L9: 0 | M9: 255 | N9: 64 | O9: 0 | P9: 255
A10: BLUE | C10: =DEC2HEX(($D10*65536)+($E10*256)+$F10) -> FF | D10: 0 | E10: 0 | F10: 255 | Q10: B
C11: 3FFF | D11: =IF(N11<0,0,N11) -> 0 | E11: =IF(O11<0,0,O11) -> 63 | F11: =IF(P11<0,0,P11) -> 255 | G11: 25 | H11: =ROUNDDOWN($G11/100*(D$14-D$10),0) -> 0 | I11: =ROUNDDOWN($G11/100*(E$14-E$10),0) -> 63 | J11: 0 | K11: =D$10+H11 -> 0 | L11: =E$10+I11 -> 63 | M11: 255 | N11: =IF(K11>255,255,K11) -> 0 | O11: 63 | P11: 255 | S11: BLUE
C12: 7FFF | D12: =IF(N12<0,0,N12) -> 0 | E12: 127 | F12: 255 | G12: 50 | H12: =ROUNDDOWN($G12/100*(D$14-D$10),0) -> 0 | I12: 127 | J12: 0 | K12: =D$10+H12 -> 0 | L12: 127 | M12: 255 | N12: 0 | O12: 127 | P12: 255
C13: CEFF | D13: 0 | E13: 206 | F13: 255 | G13: 81 | H13: 0 | I13: 206 | J13: 0 | K13: 0 | L13: 206 | M13: 255 | N13: 0 | O13: 206 | P13: 255
A14: CYAN | C14: FFFF | D14: 0 | E14: 255 | F14: 255 | R14: C
C15: FFC0 | D15: =IF(N15<0,0,N15) -> 0 | E15: =IF(O15<0,0,O15) -> 255 | F15: =IF(P15<0,0,P15) -> 192 | G15: 25 | H15: =ROUNDDOWN($G15/100*(D$18-D$14),0) -> 0 | I15: =ROUNDDOWN($G15/100*(E$18-E$14),0) -> 0 | J15: -63 | K15: =D$14+H15 -> 0 | L15: =E$14+I15 -> 255 | M15: 192 | N15: =IF(K15>255,255,K15) -> 0 | O15: 255 | P15: 192 | S15: CYAN
C16: FF80 | D16: =IF(N16<0,0,N16) -> 0 | E16: 255 | F16: 128 | G16: 50 | H16: =ROUNDDOWN($G16/100*(D$18-D$14),0) -> 0 | I16: 0 | J16: -127 | K16: =D$14+H16 -> 0 | L16: 255 | M16: 128 | N16: 0 | O16: 255 | P16: 128
C17: FF40 | D17: 0 | E17: 255 | F17: 64 | G17: 75 | H17: 0 | I17: 0 | J17: -191 | K17: 0 | L17: 255 | M17: 64 | N17: 0 | O17: 255 | P17: 64
A18: GREEN | C18: FF00 | D18: 0 | E18: 255 | F18: 0 | Q18: G
C19: 3FFF00 | D19: =IF(N19<0,0,N19) -> 63 | E19: =IF(O19<0,0,O19) -> 255 | F19: =IF(P19<0,0,P19) -> 0 | G19: 25 | H19: =ROUNDDOWN($G19/100*(D$22-D$18),0) -> 63 | I19: =ROUNDDOWN($G19/100*(E$22-E$18),0) -> 0 | J19: 0 | K19: =D$18+H19 -> 63 | L19: =E$18+I19 -> 255 | M19: 0 | N19: =IF(K19>255,255,K19) -> 63 | O19: 255 | P19: 0 | S19: GREEN
C20: 7FFF00 | D20: =IF(N20<0,0,N20) -> 127 | E20: 255 | F20: 0 | G20: 50 | H20: =ROUNDDOWN($G20/100*(D$22-D$18),0) -> 127 | I20: 0 | J20: 0 | K20: =D$18+H20 -> 127 | L20: 255 | M20: 0 | N20: 127 | O20: 255 | P20: 0
C21: BFFF00 | D21: 191 | E21: 255 | F21: 0 | G21: 75 | H21: 191 | I21: 0 | J21: 0 | K21: 191 | L21: 255 | M21: 0 | N21: 191 | O21: 255 | P21: 0
A22: YELLOW | C22: FFFF00 | D22: 255 | E22: 255 | F22: 0 | R22: Y
C23: FFCC00 | D23: =IF(N23<0,0,N23) -> 255 | E23: =IF(O23<0,0,O23) -> 204 | F23: =IF(P23<0,0,P23) -> 0 | G23: 20 | H23: =ROUNDDOWN($G23/100*(D$26-D$22),0) -> 0 | I23: =ROUNDDOWN($G23/100*(E$26-E$22),0) -> -51 | J23: 0 | K23: =D$22+H23 -> 255 | L23: =E$22+I23 -> 204 | M23: 0 | N23: =IF(K23>255,255,K23) -> 255 | O23: 204 | P23: 0 | S23: YELLOW
C24: FF8000 | D24: =IF(N24<0,0,N24) -> 255 | E24: 128 | F24: 0 | G24: 50 | H24: =ROUNDDOWN($G24/100*(D$26-D$22),0) -> 0 | I24: -127 | J24: 0 | K24: =D$22+H24 -> 255 | L24: 128 | M24: 0 | N24: 255 | O24: 128 | P24: 0
C25: FF4000 | D25: 255 | E25: 64 | F25: 0 | G25: 75 | H25: 0 | I25: -191 | J25: 0 | K25: 255 | L25: 64 | M25: 0 | N25: 255 | O25: 64 | P25: 0
A26: RED | C26: =DEC2HEX(($D26*65536)+($E26*256)+$F26) -> FF0000 | D26: 255 | E26: 0 | F26: 0 | Q26: R
S27: RED
A29: from Linear tab | S29: NAME | T29: COLOR | U29: LABEL
A30: RED | C30: ff0000 | D30: =I30 -> 255 | E30: =K30 -> 0 | F30: =M30 -> 0 | G30: =HEX2DEC(C30) -> 16711680 | H30: =G30/256^2 -> 255 | I30: =INT(H30) -> 255 | J30: =(H30-I30)*256 -> 0 | K30: =INT(J30) -> 0 | L30: =J30-K30 -> 0 | M30: =L30*256 -> 0 | N30: x | S30: RED | U30: PRIMARY
A31: RED-ORANGE | C31: FF4500 | D31: =I31 -> 255 | E31: 100 | F31: =M31 -> 0 | G31: =HEX2DEC(C31) -> 16729344 | H31: =G31/256^2 -> 255.2695312 | I31: =INT(H31) -> 255 | J31: =(H31-I31)*256 -> 69 | K31: =INT(J31) -> 69 | L31: =J31-K31 -> 0 | M31: =L31*256 -> 0 | P31: x | S31: RED-ORANGE | U31: TERTIARY
A32: ORANGE | C32: FFA500 | D32: =I32 -> 255 | E32: =K32 -> 165 | F32: =M32 -> 0 | G32: =HEX2DEC(C32) -> 16753920 | H32: =G32/256^2 -> 255.6445312 | I32: =INT(H32) -> 255 | J32: =(H32-I32)*256 -> 165 | K32: =INT(J32) -> 165 | L32: =J32-K32 -> 0 | M32: =L32*256 -> 0 | O32: x | S32: ORANGE | U32: SECONDARY
A33: ORANGE-YELLOW | C33: =DEC2HEX(($D33*65536)+($E33*256)+$F33) -> FFD200 | D33: 255 | E33: 210 | F33: 0 | P33: x | S33: ORANGE-YELLOW | U33: TERTIARY
A34: YELLOW | C34: ffff00 | D34: =I34 -> 255 | E34: =K34 -> 255 | F34: =M34 -> 0 | G34: =HEX2DEC(C34) -> 16776960 | H34: =G34/256^2 -> 255.9960938 | I34: =INT(H34) -> 255 | J34: =(H34-I34)*256 -> 255 | K34: =INT(J34) -> 255 | L34: =J34-K34 -> 0 | M34: =L34*256 -> 0 | N34: x | S34: YELLOW | U34: PRIMARY
A35: GREEN-YELLOW | C35: ADFF2F | D35: 173 | E35: 255 | F35: 47 | G35: =HEX2DEC(C35) -> 11403055 | H35: 173.9968109 | I35: 173 | J35: 255.1835938 | K35: 255 | L35: 0.18359375 | M35: 47 | P35: x | S35: GREEN-YELLOW | U35: TERTIARY
A36: GREEN | C36: 00ff00 | D36: 0 | E36: 255 | F36: 0 | G36: =HEX2DEC(C36) -> 65280 | H36: 0.99609375 | I36: 0 | J36: 255 | K36: 255 | L36: 0 | M36: 0 | O36: x | S36: GREEN | U36: SECONDARY
A37: GREEN_BLUE | C37: =DEC2HEX(($D37*65536)+($E37*256)+$F37) -> A5D2 | D37: 0 | E37: 165 | F37: 210 | P37: x | S37: GREEN_BLUE | U37: TERTIARY
A38: BLUE | C38: 0000ff | D38: =I38 -> 0 | E38: =K38 -> 0 | F38: =M38 -> 255 | G38: =HEX2DEC(C38) -> 255 | H38: =G38/256^2 -> 0.003890991211 | I38: =INT(H38) -> 0 | J38: =(H38-I38)*256 -> 0.99609375 | K38: =INT(J38) -> 0 | L38: =J38-K38 -> 0.99609375 | M38: =L38*256 -> 255 | N38: x | S38: BLUE | U38: PRIMARY
A39: BLUE-VIOLET | C39: 8A2BE2 | D39: 138 | E39: 43 | F39: 226 | G39: 9055202 | H39: 138.1714172 | I39: 138 | J39: 43.8828125 | K39: 43 | L39: 0.8828125 | M39: 226 | P39: x | S39: BLUE-VIOLET | U39: TERTIARY
A40: VIOLET | C40: ff00ff | D40: 255 | E40: 0 | F40: 255 | G40: 16711935 | H40: 255.003891 | I40: 255 | J40: 0.99609375 | K40: 0 | L40: 0.99609375 | M40: 255 | O40: x | S40: VIOLET | U40: SECONDARY
A41: VIOLET-RED | C41: =DEC2HEX(($D41*65536)+($E41*256)+$F41) -> FF00A5 | D41: 255 | F41: 165 | P41: x | S41: VIOLET-RED | U41: TERTIARY
I44: 0 | J44: 0 | K44: 0 | L44: 0 | M44: 25 | N44: 25 | O44: 25 | P44: 25 | Q44: 50 | R44: 50 | S44: 50 | T44: 50 | U44: 75 | V44: 75 | W44: 75 | X44: 75 | Y44: 100 | Z44: 100 | AA44: 100 | AB44: 100
A45: RED | C45: =DEC2HEX(($D45*65536)+($E45*256)+$F45) -> FF0000 | D45: 255 | E45: 0 | F45: 0 | J45: =255-ROUNDDOWN($D45*(J$44/100),0) -> 255 | K45: =255-ROUNDDOWN($E45*(K$44/100),0) -> 255 | L45: =255-ROUNDDOWN($F45*(L$44/100),0) -> 255 | N45: =255-ROUNDDOWN($D45*(N$44/100),0) -> 192 | O45: =255-ROUNDDOWN($E45*(O$44/100),0) -> 255 | P45: =255-ROUNDDOWN($F45*(P$44/100),0) -> 255 | R45: =255-ROUNDDOWN($D45*(R$44/100),0) -> 128 | S45: =255-ROUNDDOWN($E45*(S$44/100),0) -> 255 | T45: =255-ROUNDDOWN($F45*(T$44/100),0) -> 255 | V45: =255-ROUNDDOWN($D45*(V$44/100),0) -> 64 | W45: =255-ROUNDDOWN($E45*(W$44/100),0) -> 255 | X45: =255-ROUNDDOWN($F45*(X$44/100),0) -> 255 | Z45: =255-ROUNDDOWN($D45*(Z$44/100),0) -> 0 | AA45: =255-ROUNDDOWN($E45*(AA$44/100),0) -> 255 | AB45: =255-ROUNDDOWN($F45*(AB$44/100),0) -> 255
C46: =DEC2HEX(($D46*65536)+($E46*256)+$F46) -> FF003F | D46: 255 | E46: 0 | F46: 63 | G46: 25 | J46: =255-ROUNDDOWN($D46*(J$44/100),0) -> 255 | K46: =255-ROUNDDOWN($E46*(K$44/100),0) -> 255 | L46: =255-ROUNDDOWN($F46*(L$44/100),0) -> 255 | N46: =255-ROUNDDOWN($D46*(N$44/100),0) -> 192 | O46: =255-ROUNDDOWN($E46*(O$44/100),0) -> 255 | P46: =255-ROUNDDOWN($F46*(P$44/100),0) -> 240 | R46: =255-ROUNDDOWN($D46*(R$44/100),0) -> 128 | S46: =255-ROUNDDOWN($E46*(S$44/100),0) -> 255 | T46: =255-ROUNDDOWN($F46*(T$44/100),0) -> 224 | V46: =255-ROUNDDOWN($D46*(V$44/100),0) -> 64 | W46: =255-ROUNDDOWN($E46*(W$44/100),0) -> 255 | X46: =255-ROUNDDOWN($F46*(X$44/100),0) -> 208 | Z46: =255-ROUNDDOWN($D46*(Z$44/100),0) -> 0 | AA46: =255-ROUNDDOWN($E46*(AA$44/100),0) -> 255 | AB46: =255-ROUNDDOWN($F46*(AB$44/100),0) -> 192
C47: FF007F | D47: 255 | E47: 0 | F47: 127 | G47: 50 | J47: 255 | K47: 255 | L47: 255 | N47: 192 | O47: 255 | P47: 224 | R47: 128 | S47: 255 | T47: 192 | V47: 64 | W47: 255 | X47: 160 | Z47: 0 | AA47: 255 | AB47: 128
C48: FF00BF | D48: 255 | E48: 0 | F48: 191 | G48: 75 | J48: 255 | K48: 255 | L48: 255 | N48: 192 | O48: 255 | P48: 208 | R48: 128 | S48: 255 | T48: 160 | V48: 64 | W48: 255 | X48: 112 | Z48: 0 | AA48: 255 | AB48: 64
A49: MAGENTA | C49: FF00FF | D49: 255 | E49: 0 | F49: 255 | J49: 255 | K49: 255 | L49: 255 | N49: 192 | O49: 255 | P49: 192 | R49: 128 | S49: 255 | T49: 128 | V49: 64 | W49: 255 | X49: 64 | Z49: 0 | AA49: 255 | AB49: 0
C50: C000FF | D50: 192 | E50: 0 | F50: 255 | G50: 25 | J50: 255 | K50: 255 | L50: 255 | N50: 207 | O50: 255 | P50: 192 | R50: 159 | S50: 255 | T50: 128 | V50: 111 | W50: 255 | X50: 64 | Z50: 63 | AA50: 255 | AB50: 0
C51: 8000FF | D51: 128 | E51: 0 | F51: 255 | G51: 50 | J51: 255 | K51: 255 | L51: 255 | N51: 223 | O51: 255 | P51: 192 | R51: 191 | S51: 255 | T51: 128 | V51: 159 | W51: 255 | X51: 64 | Z51: 127 | AA51: 255 | AB51: 0
C52: 4000FF | D52: 64 | E52: 0 | F52: 255 | G52: 75 | J52: 255 | K52: 255 | L52: 255 | N52: 239 | O52: 255 | P52: 192 | R52: 223 | S52: 255 | T52: 128 | V52: 207 | W52: 255 | X52: 64 | Z52: 191 | AA52: 255 | AB52: 0
A53: BLUE | C53: =DEC2HEX(($D53*65536)+($E53*256)+$F53) -> FF | D53: 0 | E53: 0 | F53: 255 | J53: 255 | K53: 255 | L53: 255 | N53: 255 | O53: 255 | P53: 192 | R53: 255 | S53: 255 | T53: 128 | V53: 255 | W53: 255 | X53: 64 | Z53: 255 | AA53: 255 | AB53: 0
C54: 3FFF | D54: 0 | E54: 63 | F54: 255 | G54: 25 | J54: 255 | K54: 255 | L54: 255 | N54: 255 | O54: 240 | P54: 192 | R54: 255 | S54: 224 | T54: 128 | V54: 255 | W54: 208 | X54: 64 | Z54: 255 | AA54: 192 | AB54: 0
C55: 7FFF | D55: 0 | E55: 127 | F55: 255 | G55: 50 | J55: 255 | K55: 255 | L55: 255 | N55: 255 | O55: 224 | P55: 192 | R55: 255 | S55: 192 | T55: 128 | V55: 255 | W55: 160 | X55: 64 | Z55: 255 | AA55: 128 | AB55: 0
C56: CEFF | D56: 0 | E56: 206 | F56: 255 | G56: 81 | J56: 255 | K56: 255 | L56: 255 | N56: 255 | O56: 204 | P56: 192 | R56: 255 | S56: 152 | T56: 128 | V56: 255 | W56: 101 | X56: 64 | Z56: 255 | AA56: 49 | AB56: 0
A57: CYAN | C57: FFFF | D57: 0 | E57: 255 | F57: 255 | J57: 255 | K57: 255 | L57: 255 | N57: 255 | O57: 192 | P57: 192 | R57: 255 | S57: 128 | T57: 128 | V57: 255 | W57: 64 | X57: 64 | Z57: 255 | AA57: 0 | AB57: 0
C58: FFC0 | D58: 0 | E58: 255 | F58: 192 | G58: 25 | J58: 255 | K58: 255 | L58: 255 | N58: 255 | O58: 192 | P58: 207 | R58: 255 | S58: 128 | T58: 159 | V58: 255 | W58: 64 | X58: 111 | Z58: 255 | AA58: 0 | AB58: 63
C59: FF80 | D59: 0 | E59: 255 | F59: 128 | G59: 50 | J59: 255 | K59: 255 | L59: 255 | N59: 255 | O59: 192 | P59: 223 | R59: 255 | S59: 128 | T59: 191 | V59: 255 | W59: 64 | X59: 159 | Z59: 255 | AA59: 0 | AB59: 127
C60: FF40 | D60: 0 | E60: 255 | F60: 64 | G60: 75 | J60: 255 | K60: 255 | L60: 255 | N60: 255 | O60: 192 | P60: 239 | R60: 255 | S60: 128 | T60: 223 | V60: 255 | W60: 64 | X60: 207 | Z60: 255 | AA60: 0 | AB60: 191
A61: GREEN | C61: FF00 | D61: 0 | E61: 255 | F61: 0 | J61: 255 | K61: 255 | L61: 255 | N61: 255 | O61: 192 | P61: 255 | R61: 255 | S61: 128 | T61: 255 | V61: 255 | W61: 64 | X61: 255 | Z61: 255 | AA61: 0 | AB61: 255
C62: 3FFF00 | D62: 63 | E62: 255 | F62: 0 | G62: 25 | J62: 255 | K62: 255 | L62: 255 | N62: 240 | O62: 192 | P62: 255 | R62: 224 | S62: 128 | T62: 255 | V62: 208 | W62: 64 | X62: 255 | Z62: 192 | AA62: 0 | AB62: 255
C63: 7FFF00 | D63: 127 | E63: 255 | F63: 0 | G63: 50 | J63: 255 | K63: 255 | L63: 255 | N63: 224 | O63: 192 | P63: 255 | R63: 192 | S63: 128 | T63: 255 | V63: 160 | W63: 64 | X63: 255 | Z63: 128 | AA63: 0 | AB63: 255
C64: BFFF00 | D64: 191 | E64: 255 | F64: 0 | G64: 75 | J64: 255 | K64: 255 | L64: 255 | N64: 208 | O64: 192 | P64: 255 | R64: 160 | S64: 128 | T64: 255 | V64: 112 | W64: 64 | X64: 255 | Z64: 64 | AA64: 0 | AB64: 255
A65: YELLOW | C65: FFFF00 | D65: 255 | E65: 255 | F65: 0 | J65: 255 | K65: 255 | L65: 255 | N65: 192 | O65: 192 | P65: 255 | R65: 128 | S65: 128 | T65: 255 | V65: 64 | W65: 64 | X65: 255 | Z65: 0 | AA65: 0 | AB65: 255
C66: FFCC00 | D66: 255 | E66: 204 | F66: 0 | G66: 20 | J66: 255 | K66: 255 | L66: 255 | N66: 192 | O66: 204 | P66: 255 | R66: 128 | S66: 153 | T66: 255 | V66: 64 | W66: 102 | X66: 255 | Z66: 0 | AA66: 51 | AB66: 255
C67: FF8000 | D67: 255 | E67: 128 | F67: 0 | G67: 50 | J67: 255 | K67: 255 | L67: 255 | N67: 192 | O67: 223 | P67: 255 | R67: 128 | S67: 191 | T67: 255 | V67: 64 | W67: 159 | X67: 255 | Z67: 0 | AA67: 127 | AB67: 255
C68: FF4000 | D68: 255 | E68: 64 | F68: 0 | G68: 75 | J68: 255 | K68: 255 | L68: 255 | N68: 192 | O68: 239 | P68: 255 | R68: 128 | S68: 223 | T68: 255 | V68: 64 | W68: 207 | X68: 255 | Z68: 0 | AA68: 191 | AB68: 255
A69: RED | C69: =DEC2HEX(($D69*65536)+($E69*256)+$F69) -> FF0000 | D69: 255 | E69: 0 | F69: 0 | J69: 255 | K69: 255 | L69: 255 | N69: 192 | O69: 255 | P69: 255 | R69: 128 | S69: 255 | T69: 255 | V69: 64 | W69: 255 | X69: 255 | Z69: 0 | AA69: 255 | AB69: 255
A72: Each column (% amount) represents the subtractive affect of its row upon the base color (W)HITE
A73: HUE | B73: Start | C73: (W)HITE | D73: 0.25 | E73: 0.5 | F73: 0.75 | G73: 1 | H73: End
A74: (R)ED | H74: CYAN
A78: (M)AGENTA | H78: GREEN
A82: (B)LUE | H82: YELLOW
A86: (C)YAN | H86: RED
A90: (G)REEN | H90: MAGENTA
A94: (Y)ELLOW | H94: BLUE
A98: (R)ED | H98: CYAN

Sheet Figure 14.
B1: DEC | C1: HEX | D1: BIN
B2: 45 | C2: 0x2D | D2: =DEC2BIN(B2,8) -> 00101101
B3: 84 | C3: 0x54 | D3: =DEC2BIN(B3,8) -> 01010100
B4: 198 | C4: 0xC6 | D4: =DEC2BIN(B4,8) -> 11000110

Sheet Figure 15.
C1: Internet | G1: Winsor & Newton | K1: Acrylic Palette
A2: All Faces | C2: R | D2: G | E2: B | G2: R | H2: G | I2: B | K2: R | L2: G | M2: B
A4: cadmium yellow | C4: 255 | D4: 246 | E4: 0 | G4: 255 | H4: 239 | I4: 57 | K4: 239 | L4: 167 | M4: 21
A5: cadmium red | C5: 227 | D5: 0 | E5: 34 | G5: 255 | H5: 91 | I5: 62 | K5: 221 | L5: 42 | M5: 45
A6: burnt umber | C6: 138 | D6: 51 | E6: 36 | G6: 80 | H6: 50 | I6: 39 | K6: 44 | L6: 31 | M6: 33
A7: phthalo green | C7: 4 | D7: 58 | E7: 20 | G7: 25 | H7: 92 | I7: 23 | K7: 29 | L7: 52 | M7: 32
A8: winsor blue | G8: 13 | H8: 46 | I8: 100 | K8: 9 | L8: 35 | M8: 128
A9: phthalo blue | C9: 0 | D9: 15 | E9: 137
A10: titanium white | C10: 255 | D10: 255 | E10: 255 | G10: 250 | H10: 251 | I10: 253 | K10: 255 | L10: 255 | M10: 255
A11: ivory black | C11: 26 | D11: 36 | E11: 33 | G11: 18 | H11: 20 | I11: 17

Sheet Figure 16.
A1: title | B1: hue | C1: hex | D1: r | E1: g | F1: b | G1: dec | H1: rr | I1: rrr | J1: gg | K1: ggg | L1: bb | M1: bbb | N1: h | O1: s | P1: v | Q1: inc | R1: site | S1: cat | T1: html | U1: a.k.a. | V1: comp
A2: LightCyan | C2: E0FFFF | D2: =I2 -> 224 | E2: =K2 -> 255 | F2: =M2 -> 255 | G2: =HEX2DEC(C2) -> 14745599 | H2: =G2/256^2 -> 224.9999847 | I2: =INT(H2) -> 224 | J2: =(H2-I2)*256 -> 255.9960938 | K2: =INT(J2) -> 255 | L2: =J2-K2 -> 0.99609375 | M2: =L2*256 -> 255 | R2: htmlcolorcodes | S2: B | T2: Y | V2: =SUM(D2:F2) -> 734
A3: PaleTurquoise | C3: AFEEEE | D3: 175 | E3: 238 | F3: 238 | G3: 11529966 | H3: 175.9333191 | I3: 175 | J3: 238.9296875 | K3: 238 | L3: 0.9296875 | M3: 238 | R3: htmlcolorcodes | S3: B | T3: Y | V3: 651 | X3: LABEL | Y3: COLOR | Z3: R | AA3: G | AB3: B | AC3: HEX
A4: PowderBlue | C4: B0E0E6 | D4: 176 | E4: 224 | F4: 230 | G4: 11591910 | H4: 176.8785095 | I4: 176 | J4: 224.8984375 | K4: 224 | L4: 0.8984375 | M4: 230 | R4: htmlcolorcodes | S4: B | T4: Y | V4: 630 | X4: White | Z4: 255 | AA4: 255 | AB4: 255 | AC4: FFFFFF
A5: LightBlue | C5: ADD8E6 | D5: 173 | E5: 216 | F5: 230 | G5: 11393254 | H5: 173.8472595 | I5: 173 | J5: 216.8984375 | K5: 216 | L5: 0.8984375 | M5: 230 | R5: htmlcolorcodes | S5: B | T5: Y | V5: 619 | X5: Black | Z5: 0 | AA5: 0 | AB5: 0 | AC5: 000000
A6: LightSteelBlue | C6: B0C4DE | D6: 176 | E6: 196 | F6: 222 | G6: 11584734 | H6: 176.7690125 | I6: 176 | J6: 196.8671875 | K6: 196 | L6: 0.8671875 | M6: 222 | R6: htmlcolorcodes | S6: B | T6: Y | V6: 594 | X6: DeepSkyBlue | Z6: 0 | AA6: 191 | AB6: 255 | AC6: 00BFFF
A7: Aquamarine | C7: 7FFFD4 | D7: 127 | E7: 255 | F7: 212 | G7: 8388564 | H7: 127.9993286 | I7: 127 | J7: 255.828125 | K7: 255 | L7: 0.828125 | M7: 212 | R7: htmlcolorcodes | S7: B | T7: Y | V7: 594 | X7: LightSkyBlue | Z7: 135 | AA7: 206 | AB7: 250 | AC7: 87CEFA
A8: LightSkyBlue | C8: 87CEFA | D8: 135 | E8: 206 | F8: 250 | G8: 8900346 | H8: 135.8085022 | I8: 135 | J8: 206.9765625 | K8: 206 | L8: 0.9765625 | M8: 250 | R8: htmlcolorcodes | S8: B | T8: Y | V8: 591 | X8: Goldenrod | Z8: 218 | AA8: 165 | AB8: 32 | AC8: DAA520
A9: SkyBlue | C9: 87CEEB | D9: 135 | E9: 206 | F9: 235 | G9: 8900331 | H9: 135.8082733 | I9: 135 | J9: 206.9179688 | K9: 206 | L9: 0.91796875 | M9: 235 | R9: htmlcolorcodes | S9: B | T9: Y | V9: 576 | X9: Bisque | Z9: 255 | AA9: 228 | AB9: 196 | AC9: FFE4C4
A10: Cyan | C10: 00FFFF | D10: 0 | E10: 255 | F10: 255 | G10: 65535 | H10: 0.9999847412 | I10: 0 | J10: 255.9960938 | K10: 255 | L10: 0.99609375 | M10: 255 | R10: htmlcolorcodes | S10: B | T10: Y | U10: Aqua | V10: 510 | X10: Chartreuse | Z10: 127 | AA10: 255 | AB10: 0 | AC10: 7FFF00
A11: Turquoise | C11: 40E0D0 | D11: 64 | E11: 224 | F11: 208 | G11: 4251856 | H11: 64.87817383 | I11: 64 | J11: 224.8125 | K11: 224 | L11: 0.8125 | M11: 208 | R11: htmlcolorcodes | S11: B | T11: Y | V11: 496 | X11: LimeGreen | Z11: 50 | AA11: 205 | AB11: 50 | AC11: 32CD32
A12: CornflowerBlue | C12: 6495ED | D12: 100 | E12: 149 | F12: 237 | G12: 6591981 | H12: 100.5856476 | I12: 100 | J12: 149.9257812 | K12: 149 | L12: 0.92578125 | M12: 237 | R12: htmlcolorcodes | S12: B | T12: Y | V12: 486 | X12: Orange | Z12: 255 | AA12: 165 | AB12: 0 | AC12: FFA500
A13: MediumTurquoise | C13: 48D1CC | D13: 72 | E13: 209 | F13: 204 | G13: 4772300 | H13: 72.81951904 | I13: 72 | J13: 209.796875 | K13: 209 | L13: 0.796875 | M13: 204 | R13: htmlcolorcodes | S13: B | T13: Y | V13: 485 | X13: Tomato | Z13: 255 | AA13: 99 | AB13: 71 | AC13: FF6347
A14: MediumSlateBlue | C14: 7B68EE | D14: 123 | E14: 104 | F14: 238 | G14: 8087790 | H14: 123.4098816 | I14: 123 | J14: 104.9296875 | K14: 104 | L14: 0.9296875 | M14: 238 | R14: htmlcolorcodes | S14: B | T14: Y | V14: 465 | X14: Plum | Z14: 221 | AA14: 160 | AB14: 221 | AC14: DDA0DD
A15: DeepSkyBlue | C15: 00BFFF | D15: 0 | E15: 191 | F15: 255 | G15: 49151 | H15: 0.7499847412 | I15: 0 | J15: 191.9960938 | K15: 191 | L15: 0.99609375 | M15: 255 | R15: htmlcolorcodes | S15: B | T15: Y | V15: 446 | X15: RebeccaPurple | Z15: 102 | AA15: 51 | AB15: 153 | AC15: 663399
A16: DodgerBlue | C16: 1E90FF | D16: 30 | E16: 144 | F16: 255 | G16: 2003199 | H16: 30.56639099 | I16: 30 | J16: 144.9960938 | K16: 144 | L16: 0.99609375 | M16: 255 | R16: htmlcolorcodes | S16: B | T16: Y | V16: 429 | X16: Amaranth | Z16: 229 | AA16: 43 | AB16: 80 | AC16: e52b50
A17: DarkTurquoise | C17: 00CED1 | D17: 0 | E17: 206 | F17: 209 | G17: 52945 | H17: 0.8078765869 | I17: 0 | J17: 206.8164062 | K17: 206 | L17: 0.81640625 | M17: 209 | R17: htmlcolorcodes | S17: B | T17: Y | V17: 415 | X17: HotPink | Z17: 255 | AA17: 105 | AB17: 180 | AC17: FF69B4
A18: CadetBlue | C18: 5F9EA0 | D18: 95 | E18: 158 | F18: 160 | G18: 6266528 | H18: 95.61962891 | I18: 95 | J18: 158.625 | K18: 158 | L18: 0.625 | M18: 160 | R18: htmlcolorcodes | S18: B | T18: Y | V18: 413 | X18: Crimson | Z18: 220 | AA18: 20 | AB18: 60 | AC18: DC143C
A19: RoyalBlue | C19: 4169E1 | D19: 65 | E19: 105 | F19: 225 | G19: 4286945 | H19: 65.41358948 | I19: 65 | J19: 105.8789062 | K19: 105 | L19: 0.87890625 | M19: 225 | R19: htmlcolorcodes | S19: B | T19: Y | V19: 395 | X19: LightSalmon | Z19: 255 | AA19: 160 | AB19: 122 | AC19: FFA07A
A20: SteelBlue | C20: 4682B4 | D20: 70 | E20: 130 | F20: 180 | G20: 4620980 | H20: 70.51055908 | I20: 70 | J20: 130.703125 | K20: 130 | L20: 0.703125 | M20: 180 | R20: htmlcolorcodes | S20: B | T20: Y | V20: 380 | X20: Gold | Z20: 255 | AA20: 215 | AB20: 0 | AC20: FFD700
A21: Blue | C21: 0000FF | D21: 0 | E21: 0 | F21: 255 | G21: 255 | H21: 0.003890991211 | I21: 0 | J21: 0.99609375 | K21: 0 | L21: 0.99609375 | M21: 255 | R21: htmlcolorcodes | S21: B | T21: Y | V21: 255 | X21: LemonChiffon | Z21: 255 | AA21: 250 | AB21: 205 | AC21: FFFACD
A22: MediumBlue | C22: 0000CD | D22: 0 | E22: 0 | F22: 205 | G22: 205 | H22: 0.003128051758 | I22: 0 | J22: 0.80078125 | K22: 0 | L22: 0.80078125 | M22: 205 | R22: htmlcolorcodes | S22: B | T22: Y | V22: 205
A23: MidnightBlue | C23: 191970 | D23: 25 | E23: 25 | F23: 112 | G23: 1644912 | H23: 25.09936523 | I23: 25 | J23: 25.4375 | K23: 25 | L23: 0.4375 | M23: 112 | R23: htmlcolorcodes | S23: B | T23: Y | V23: 162
A24: DarkBlue | C24: 00008B | D24: 0 | E24: 0 | F24: 139 | G24: 139 | H24: 0.00212097168 | I24: 0 | J24: 0.54296875 | K24: 0 | L24: 0.54296875 | M24: 139 | R24: htmlcolorcodes | S24: B | T24: Y | V24: 139
A25: Navy | C25: 000080 | D25: 0 | E25: 0 | F25: 128 | G25: 128 | H25: 0.001953125 | I25: 0 | J25: 0.5 | K25: 0 | L25: 0.5 | M25: 128 | R25: htmlcolorcodes | S25: B | T25: Y | V25: 128
A26: Electric Blue | C26: 7df9ff | D26: 125 | E26: 249 | F26: 255 | G26: 8255999 | H26: 125.9765472 | I26: 125 | J26: 249.9960938 | K26: 249 | L26: 0.99609375 | M26: 255 | R26: colorhexa | S26: B | V26: 629
A27: Cerulean | C27: 007ba7 | D27: 0 | E27: 123 | F27: 167 | G27: 31655 | H27: 0.4830169678 | I27: 0 | J27: 123.6523438 | K27: 123 | L27: 0.65234375 | M27: 167 | R27: colorhexa | S27: B | V27: 290
A28: Cobalt | C28: 0047ab | D28: 0 | E28: 71 | F28: 171 | G28: 18347 | H28: 0.2799530029 | I28: 0 | J28: 71.66796875 | K28: 71 | L28: 0.66796875 | M28: 171 | N28: 180 | O28: 100 | P28: 100 | R28: colorhexa | S28: B | V28: 242
A29: Egyptian Blue | C29: 1034a6 | D29: 16 | E29: 52 | F29: 166 | G29: 1062054 | H29: 16.20565796 | I29: 16 | J29: 52.6484375 | K29: 52 | L29: 0.6484375 | M29: 166 | R29: colorhexa | S29: B | V29: 234
A30: Indigo | C30: 4b0082 | D30: 75 | E30: 0 | F30: 130 | G30: 4915330 | H30: 75.00198364 | I30: 75 | J30: 0.5078125 | K30: 0 | L30: 0.5078125 | M30: 130 | R30: colorhexa | S30: B | V30: 205
A31: Ultramarine | C31: 120a8f | D31: 18 | E31: 10 | F31: 143 | G31: 1182351 | H31: 18.04124451 | I31: 18 | J31: 10.55859375 | K31: 10 | L31: 0.55859375 | M31: 143 | N31: 300 | O31: 100 | P31: 100 | R31: colorhexa | S31: B | V31: 171
A32: Prussian Blue | C32: 003153 | D32: 0 | E32: 49 | F32: 83 | G32: 12627 | H32: 0.1926727295 | I32: 0 | J32: 49.32421875 | K32: 49 | L32: 0.32421875 | M32: 83 | N32: 30 | O32: 100 | P32: 100 | R32: colorhexa | S32: B | V32: 132
A33: Aqua Blue | C33: 05C3DD | D33: 5 | E33: 195 | F33: 221 | G33: 377821 | H33: 5.765090942 | I33: 5 | J33: 195.8632812 | K33: 195 | L33: 0.86328125 | M33: 221 | S33: B | V33: 421
A34: Woad | D34: 0 | E34: 0 | F34: 0 | G34: 0 | H34: 0 | I34: 0 | J34: 0 | K34: 0 | L34: 0 | M34: 0 | S34: B | V34: 0
A35: Black | C35: 0 | D35: 0 | E35: 0 | F35: 0 | G35: 0 | H35: 0 | I35: 0 | J35: 0 | K35: 0 | L35: 0 | M35: 0 | R35: obvious | S35: Bk | V35: 0
A36: Charcoal | C36: 36454f | D36: 54 | E36: 69 | F36: 79 | G36: 3556687 | H36: 54.27073669 | I36: 54 | J36: 69.30859375 | K36: 69 | L36: 0.30859375 | M36: 79 | R36: colorhexa | S36: Bk | V36: 202
A37: Kohl | D37: 0 | E37: 0 | F37: 0 | G37: 0 | H37: 0 | I37: 0 | J37: 0 | K37: 0 | L37: 0 | M37: 0 | S37: Bk | V37: 0
A38: Paynes Grey | D38: 0 | E38: 0 | F38: 0 | G38: 0 | H38: 0 | I38: 0 | J38: 0 | K38: 0 | L38: 0 | M38: 0 | S38: Bk | V38: 0
A39: Obsidian | D39: 0 | E39: 0 | F39: 0 | G39: 0 | H39: 0 | I39: 0 | J39: 0 | K39: 0 | L39: 0 | M39: 0 | S39: Bk | V39: 0
A40: Ink | D40: 0 | E40: 0 | F40: 0 | G40: 0 | H40: 0 | I40: 0 | J40: 0 | K40: 0 | L40: 0 | M40: 0 | S40: Bk | V40: 0
A41: Jet | D41: 0 | E41: 0 | F41: 0 | G41: 0 | H41: 0 | I41: 0 | J41: 0 | K41: 0 | L41: 0 | M41: 0 | S41: Bk | V41: 0
A42: Melanin | D42: 0 | E42: 0 | F42: 0 | G42: 0 | H42: 0 | I42: 0 | J42: 0 | K42: 0 | L42: 0 | M42: 0 | S42: Bk | V42: 0
A43: Pitch Black | D43: 0 | E43: 0 | F43: 0 | G43: 0 | H43: 0 | I43: 0 | J43: 0 | K43: 0 | L43: 0 | M43: 0 | S43: Bk | V43: 0
A44: Vantablack | D44: 0 | E44: 0 | F44: 0 | G44: 0 | H44: 0 | I44: 0 | J44: 0 | K44: 0 | L44: 0 | M44: 0 | S44: Bk | V44: 0
A45: Cornsilk | C45: FFF8DC | D45: 255 | E45: 248 | F45: 220 | G45: 16775388 | H45: 255.9721069 | I45: 255 | J45: 248.859375 | K45: 248 | L45: 0.859375 | M45: 220 | R45: htmlcolorcodes | S45: Br | T45: Y | V45: 723
A46: BlanchedAlmond | C46: FFEBCD | D46: 255 | E46: 235 | F46: 205 | G46: 16772045 | H46: 255.9210968 | I46: 255 | J46: 235.8007812 | K46: 235 | L46: 0.80078125 | M46: 205 | R46: htmlcolorcodes | S46: Br | T46: Y | V46: 695
A47: Bisque | C47: FFE4C4 | D47: 255 | E47: 228 | F47: 196 | G47: 16770244 | H47: 255.8936157 | I47: 255 | J47: 228.765625 | K47: 228 | L47: 0.765625 | M47: 196 | R47: htmlcolorcodes | S47: Br | T47: Y | V47: 679
A48: Moccasin | C48: ffe4b5 | D48: 255 | E48: 228 | F48: 181 | G48: 16770229 | H48: 255.8933868 | I48: 255 | J48: 228.7070312 | K48: 228 | L48: 0.70703125 | M48: 181 | R48: htmlcolorcodes | S48: Br | V48: 664
A49: NavajoWhite | C49: FFDEAD | D49: 255 | E49: 222 | F49: 173 | G49: 16768685 | H49: 255.8698273 | I49: 255 | J49: 222.6757812 | K49: 222 | L49: 0.67578125 | M49: 173 | R49: htmlcolorcodes | S49: Br | T49: Y | V49: 650
A50: Wheat | C50: F5DEB3 | D50: 245 | E50: 222 | F50: 179 | G50: 16113331 | H50: 245.8699188 | I50: 245 | J50: 222.6992188 | K50: 222 | L50: 0.69921875 | M50: 179 | R50: htmlcolorcodes | S50: Br | T50: Y | V50: 646
A51: BurlyWood | C51: DEB887 | D51: 222 | E51: 184 | F51: 135 | G51: 14596231 | H51: 222.7208099 | I51: 222 | J51: 184.5273438 | K51: 184 | L51: 0.52734375 | M51: 135 | R51: htmlcolorcodes | S51: Br | T51: Y | V51: 541
A52: Tan | C52: D2B48C | D52: 210 | E52: 180 | F52: 140 | G52: 13808780 | H52: 210.7052612 | I52: 210 | J52: 180.546875 | K52: 180 | L52: 0.546875 | M52: 140 | R52: htmlcolorcodes | S52: Br | T52: Y | V52: 530
A53: SandyBrown | C53: F4A460 | D53: 244 | E53: 164 | F53: 96 | G53: 16032864 | H53: 244.6420898 | I53: 244 | J53: 164.375 | K53: 164 | L53: 0.375 | M53: 96 | R53: htmlcolorcodes | S53: Br | T53: Y | V53: 504
A54: RosyBrown | C54: BC8F8F | D54: 188 | E54: 143 | F54: 143 | G54: 12357519 | H54: 188.5607758 | I54: 188 | J54: 143.5585938 | K54: 143 | L54: 0.55859375 | M54: 143 | R54: htmlcolorcodes | S54: Br | T54: Y | V54: 474
A55: Goldenrod | C55: DAA520 | D55: 218 | E55: 165 | F55: 32 | G55: 14329120 | H55: 218.6450195 | I55: 218 | J55: 165.125 | K55: 165 | L55: 0.125 | M55: 32 | R55: htmlcolorcodes | S55: Br | T55: Y | V55: 415
A56: Peru | C56: CD853F | D56: 205 | E56: 133 | F56: 63 | G56: 13468991 | H56: 205.5204926 | I56: 205 | J56: 133.2460938 | K56: 133 | L56: 0.24609375 | M56: 63 | R56: htmlcolorcodes | S56: Br | T56: Y | V56: 401
A57: Chocolate | C57: D2691E | D57: 210 | E57: 105 | F57: 30 | G57: 13789470 | H57: 210.410614 | I57: 210 | J57: 105.1171875 | K57: 105 | L57: 0.1171875 | M57: 30 | R57: htmlcolorcodes | S57: Br | T57: Y | V57: 345
A58: DarkGoldenrod | C58: B8860B | D58: 184 | E58: 134 | F58: 11 | G58: 12092939 | H58: 184.5236053 | I58: 184 | J58: 134.0429688 | K58: 134 | L58: 0.04296875 | M58: 11 | R58: htmlcolorcodes | S58: Br | T58: Y | V58: 329
A59: Sienna | C59: A0522D | D59: 160 | E59: 82 | F59: 45 | G59: 10506797 | H59: 160.3209991 | I59: 160 | J59: 82.17578125 | K59: 82 | L59: 0.17578125 | M59: 45 | R59: htmlcolorcodes | S59: Br | T59: Y | V59: 287
A60: Brown | C60: A52A2A | D60: 165 | E60: 42 | F60: 42 | G60: 10824234 | H60: 165.1647034 | I60: 165 | J60: 42.1640625 | K60: 42 | L60: 0.1640625 | M60: 42 | R60: htmlcolorcodes | S60: Br | T60: Y | U60: Auburn | V60: 249
A61: SaddleBrown | C61: 8B4513 | D61: 139 | E61: 69 | F61: 19 | G61: 9127187 | H61: 139.2698212 | I61: 139 | J61: 69.07421875 | K61: 69 | L61: 0.07421875 | M61: 19 | R61: htmlcolorcodes | S61: Br | T61: Y | V61: 227
A62: Maroon | C62: 800000 | D62: 128 | E62: 0 | F62: 0 | G62: 8388608 | H62: 128 | I62: 128 | J62: 0 | K62: 0 | L62: 0 | M62: 0 | R62: htmlcolorcodes | S62: Br | T62: Y | V62: 128
A63: Buff | C63: f0dc82 | D63: 240 | E63: 220 | F63: 130 | G63: 15785090 | H63: 240.8613586 | I63: 240 | J63: 220.5078125 | K63: 220 | L63: 0.5078125 | M63: 130 | R63: colorhexa | S63: Br | V63: 590
A64: Khaki | C64: c3b091 | D64: 195 | E64: 176 | F64: 145 | G64: 12824721 | H64: 195.6897125 | I64: 195 | J64: 176.5664062 | K64: 176 | L64: 0.56640625 | M64: 145 | R64: colorhexa | S64: Br | V64: 516
A65: Fallow | C65: c19a6b | D65: 193 | E65: 154 | F65: 107 | G65: 12687979 | H65: 193.6031952 | I65: 193 | J65: 154.4179688 | K65: 154 | L65: 0.41796875 | M65: 107 | R65: colorhexa | S65: Br | U65: Camel, Desert | V65: 454
A66: Umber | C66: 635147 | D66: =I66 -> 99 | E66: =K66 -> 81 | F66: =M66 -> 71 | G66: =HEX2DEC(C66) -> 6508871 | H66: =G66/256^2 -> 99.31748962 | I66: =INT(H66) -> 99 | J66: =(H66-I66)*256 -> 81.27734375 | K66: =INT(J66) -> 81 | L66: =J66-K66 -> 0.27734375 | M66: =L66*256 -> 71 | R66: colorhexa | S66: Br | V66: =SUM(D66:F66) -> 251
A67: Russet | C67: 80461b | D67: 128 | E67: 70 | F67: 27 | G67: 8406555 | H67: 128.2738495 | I67: 128 | J67: 70.10546875 | K67: 70 | L67: 0.10546875 | M67: 27 | R67: colorhexa | S67: Br | V67: 225
A68: Sepia | C68: 704214 | D68: 112 | E68: 66 | F68: 20 | G68: 7356948 | H68: 112.2581177 | I68: 112 | J68: 66.078125 | K68: 66 | L68: 0.078125 | M68: 20 | R68: colorhexa | S68: Br | V68: 198
A69: Taupe | C69: 483c32 | D69: 72 | E69: 60 | F69: 50 | G69: 4734002 | H69: 72.23513794 | I69: 72 | J69: 60.1953125 | K69: 60 | L69: 0.1953125 | M69: 50 | R69: colorhexa | S69: Br | V69: 182
A70: Mummy | D70: 0 | E70: 0 | F70: 0 | G70: 0 | H70: 0 | I70: 0 | J70: 0 | K70: 0 | L70: 0 | M70: 0 | S70: Br | V70: 0
A71: Green | C71: 00ff00 | D71: 0 | E71: 255 | F71: 0 | G71: 65280 | H71: 0.99609375 | I71: 0 | J71: 255 | K71: 255 | L71: 0 | M71: 0 | N71: 120 | O71: 100 | P71: 100 | R71: obvious | S71: G | V71: 255
A72: PaleGreen | C72: 98FB98 | D72: 152 | E72: 251 | F72: 152 | G72: 10025880 | H72: 152.9827881 | I72: 152 | J72: 251.59375 | K72: 251 | L72: 0.59375 | M72: 152 | R72: htmlcolorcodes | S72: G | T72: Y | V72: 555
A73: LightGreen | C73: 90EE90 | D73: 144 | E73: 238 | F73: 144 | G73: 9498256 | H73: 144.9318848 | I73: 144 | J73: 238.5625 | K73: 238 | L73: 0.5625 | M73: 144 | R73: htmlcolorcodes | S73: G | T73: Y | V73: 526
A74: MediumAquamarine | C74: 66CDAA | D74: 102 | E74: 205 | F74: 170 | G74: 6737322 | H74: 102.8033752 | I74: 102 | J74: 205.6640625 | K74: 205 | L74: 0.6640625 | M74: 170 | R74: htmlcolorcodes | S74: G | T74: Y | V74: 477
A75: GreenYellow | C75: ADFF2F | D75: 173 | E75: 255 | F75: 47 | G75: 11403055 | H75: 173.9968109 | I75: 173 | J75: 255.1835938 | K75: 255 | L75: 0.18359375 | M75: 47 | R75: htmlcolorcodes | S75: G | T75: Y | V75: 475
A76: DarkSeaGreen | C76: 8FBC8B | D76: 143 | E76: 188 | F76: 139 | G76: 9419915 | H76: 143.736496 | I76: 143 | J76: 188.5429688 | K76: 188 | L76: 0.54296875 | M76: 139 | R76: htmlcolorcodes | S76: G | T76: Y | V76: 470
A77: YellowGreen | C77: 9ACD32 | D77: 154 | E77: 205 | F77: 50 | G77: 10145074 | H77: 154.8015442 | I77: 154 | J77: 205.1953125 | K77: 205 | L77: 0.1953125 | M77: 50 | R77: htmlcolorcodes | S77: G | T77: Y | V77: 409
A78: MediumSpringGreen | C78: 00FA9A | D78: 0 | E78: 250 | F78: 154 | G78: 64154 | H78: 0.9789123535 | I78: 0 | J78: 250.6015625 | K78: 250 | L78: 0.6015625 | M78: 154 | R78: htmlcolorcodes | S78: G | T78: Y | V78: 404
A79: SpringGreen | C79: 00FF7F | D79: 0 | E79: 255 | F79: 127 | G79: 65407 | H79: 0.9980316162 | I79: 0 | J79: 255.4960938 | K79: 255 | L79: 0.49609375 | M79: 127 | R79: htmlcolorcodes | S79: G | T79: Y | V79: 382
A80: Chartreuse | C80: 7FFF00 | D80: 127 | E80: 255 | F80: 0 | G80: 8388352 | H80: 127.9960938 | I80: 127 | J80: 255 | K80: 255 | L80: 0 | M80: 0 | R80: htmlcolorcodes | S80: G | T80: Y | V80: 382
A81: LightSeaGreen | C81: 20B2AA | D81: 32 | E81: 178 | F81: 170 | G81: 2142890 | H81: 32.69790649 | I81: 32 | J81: 178.6640625 | K81: 178 | L81: 0.6640625 | M81: 170 | R81: htmlcolorcodes | S81: G | T81: Y | V81: 380
A82: LawnGreen | C82: 7CFC00 | D82: 124 | E82: 252 | F82: 0 | G82: 8190976 | H82: 124.984375 | I82: 124 | J82: 252 | K82: 252 | L82: 0 | M82: 0 | R82: htmlcolorcodes | S82: G | T82: Y | V82: 376
A83: MediumSeaGreen | C83: 3CB371 | D83: 60 | E83: 179 | F83: 113 | G83: 3978097 | H83: 60.70094299 | I83: 60 | J83: 179.4414062 | K83: 179 | L83: 0.44140625 | M83: 113 | R83: htmlcolorcodes | S83: G | T83: Y | V83: 352
A84: LimeGreen | C84: 32CD32 | D84: 50 | E84: 205 | F84: 50 | G84: 3329330 | H84: 50.80154419 | I84: 50 | J84: 205.1953125 | K84: 205 | L84: 0.1953125 | M84: 50 | R84: htmlcolorcodes | S84: G | T84: Y | V84: 305
A85: OliveDrab | C85: 6B8E23 | D85: 107 | E85: 142 | F85: 35 | G85: 7048739 | H85: 107.5552216 | I85: 107 | J85: 142.1367188 | K85: 142 | L85: 0.13671875 | M85: 35 | R85: htmlcolorcodes | S85: G | T85: Y | V85: 284
A86: DarkCyan | C86: 008B8B | D86: 0 | E86: 139 | F86: 139 | G86: 35723 | H86: 0.5450897217 | I86: 0 | J86: 139.5429688 | K86: 139 | L86: 0.54296875 | M86: 139 | R86: htmlcolorcodes | S86: G | T86: Y | V86: 278
A87: SeaGreen | C87: 2E8B57 | D87: 46 | E87: 139 | F87: 87 | G87: 3050327 | H87: 46.54429626 | I87: 46 | J87: 139.3398438 | K87: 139 | L87: 0.33984375 | M87: 87 | R87: htmlcolorcodes | S87: G | T87: Y | V87: 272
A88: Teal | C88: 008080 | D88: 0 | E88: 128 | F88: 128 | G88: 32896 | H88: 0.501953125 | I88: 0 | J88: 128.5 | K88: 128 | L88: 0.5 | M88: 128 | R88: htmlcolorcodes | S88: G | T88: Y | V88: 256
A89: Olive | C89: 808000 | D89: 128 | E89: 128 | F89: 0 | G89: 8421376 | H89: 128.5 | I89: 128 | J89: 128 | K89: 128 | L89: 0 | M89: 0 | R89: htmlcolorcodes | S89: G | T89: Y | V89: 256
A90: Lime | C90: 00FF00 | D90: 0 | E90: 255 | F90: 0 | G90: 65280 | H90: 0.99609375 | I90: 0 | J90: 255 | K90: 255 | L90: 0 | M90: 0 | R90: htmlcolorcodes | S90: G | T90: Y | V90: 255
A91: DarkOliveGreen | C91: 556B2F | D91: 85 | E91: 107 | F91: 47 | G91: 5597999 | H91: 85.41868591 | I91: 85 | J91: 107.1835938 | K91: 107 | L91: 0.18359375 | M91: 47 | R91: htmlcolorcodes | S91: G | T91: Y | V91: 239
A92: ForestGreen | C92: 228B22 | D92: 34 | E92: 139 | F92: 34 | G92: 2263842 | H92: 34.54348755 | I92: 34 | J92: 139.1328125 | K92: 139 | L92: 0.1328125 | M92: 34 | R92: htmlcolorcodes | S92: G | T92: Y | V92: 207
A93: Green | C93: 008000 | D93: 0 | E93: 128 | F93: 0 | G93: 32768 | H93: 0.5 | I93: 0 | J93: 128 | K93: 128 | L93: 0 | M93: 0 | R93: htmlcolorcodes | S93: G | T93: Y | V93: 128
A94: DarkGreen | C94: 006400 | D94: 0 | E94: 100 | F94: 0 | G94: 25600 | H94: 0.390625 | I94: 0 | J94: 100 | K94: 100 | L94: 0 | M94: 0 | R94: htmlcolorcodes | S94: G | T94: Y | V94: 100
A95: Celadon | C95: ace1af | D95: 172 | E95: 225 | F95: 175 | G95: 11329967 | H95: 172.8815765 | I95: 172 | J95: 225.6835938 | K95: 225 | L95: 0.68359375 | M95: 175 | R95: colorhexa | S95: G | V95: 572
A96: Verdigris | C96: 43b3ae | D96: 67 | E96: 179 | F96: 174 | G96: 4436910 | H96: 67.70187378 | I96: 67 | J96: 179.6796875 | K96: 179 | L96: 0.6796875 | M96: 174 | R96: colorhexa | S96: G | V96: 420
A97: Emerald | C97: 50c878 | D97: 80 | E97: 200 | F97: 120 | G97: 5294200 | H97: 80.78308105 | I97: 80 | J97: 200.46875 | K97: 200 | L97: 0.46875 | M97: 120 | R97: colorhexa | S97: G | V97: 400
A98: Kelly Green | C98: 4cbb17 | D98: 76 | E98: 187 | F98: 23 | G98: 5028631 | H98: 76.7308197 | I98: 76 | J98: 187.0898438 | K98: 187 | L98: 0.08984375 | M98: 23 | R98: colorhexa | S98: G | V98: 286
A99: pure cyan | C99: 00ffff | D99: 0 | E99: 255 | F99: 255 | G99: 65535 | H99: 0.9999847412 | I99: 0 | J99: 255.9960938 | K99: 255 | L99: 0.99609375 | M99: 255 | N99: 180 | O99: 100 | P99: 100 | S99: G | V99: 510
A100: pure green | C100: 00ff00 | D100: 0 | E100: 255 | F100: 0 | G100: 65280 | H100: 0.99609375 | I100: 0 | J100: 255 | K100: 255 | L100: 0 | M100: 0 | N100: 120 | O100: 100 | P100: 100 | S100: G | V100: 255
A101: Absinthe | D101: 0 | E101: 0 | F101: 0 | G101: 0 | H101: 0 | I101: 0 | J101: 0 | K101: 0 | L101: 0 | M101: 0 | S101: G | V101: 0
A102: Scheels Green | D102: 0 | E102: 0 | F102: 0 | G102: 0 | H102: 0 | I102: 0 | J102: 0 | K102: 0 | L102: 0 | M102: 0 | S102: G | V102: 0
A103: Terre Verte | D103: 0 | E103: 0 | F103: 0 | G103: 0 | H103: 0 | I103: 0 | J103: 0 | K103: 0 | L103: 0 | M103: 0 | S103: G | V103: 0
A104: Avacado | D104: 0 | E104: 0 | F104: 0 | G104: 0 | H104: 0 | I104: 0 | J104: 0 | K104: 0 | L104: 0 | M104: 0 | S104: G | V104: 0
A105: Gainsboro | C105: DCDCDC | D105: 220 | E105: 220 | F105: 220 | G105: 14474460 | H105: 220.8627319 | I105: 220 | J105: 220.859375 | K105: 220 | L105: 0.859375 | M105: 220 | R105: htmlcolorcodes | S105: Gr | T105: Y | V105: 660
A106: LightGray | C106: D3D3D3 | D106: 211 | E106: 211 | F106: 211 | G106: 13882323 | H106: 211.8274384 | I106: 211 | J106: 211.8242188 | K106: 211 | L106: 0.82421875 | M106: 211 | R106: htmlcolorcodes | S106: Gr | T106: Y | V106: 633
A107: Silver | C107: C0C0C0 | D107: 192 | E107: 192 | F107: 192 | G107: 12632256 | H107: 192.7529297 | I107: 192 | J107: 192.75 | K107: 192 | L107: 0.75 | M107: 192 | R107: htmlcolorcodes | S107: Gr | T107: Y | V107: 576
A108: DarkGray | C108: A9A9A9 | D108: 169 | E108: 169 | F108: 169 | G108: 11119017 | H108: 169.662735 | I108: 169 | J108: 169.6601562 | K108: 169 | L108: 0.66015625 | M108: 169 | R108: htmlcolorcodes | S108: Gr | T108: Y | V108: 507
A109: LightSlateGray | C109: 778899 | D109: 119 | E109: 136 | F109: 153 | G109: 7833753 | H109: 119.5335846 | I109: 119 | J109: 136.5976562 | K109: 136 | L109: 0.59765625 | M109: 153 | R109: htmlcolorcodes | S109: Gr | T109: Y | V109: 408
A110: SlateGray | C110: 708090 | D110: 112 | E110: 128 | F110: 144 | G110: 7372944 | H110: 112.5021973 | I110: 112 | J110: 128.5625 | K110: 128 | L110: 0.5625 | M110: 144 | R110: htmlcolorcodes | S110: Gr | T110: Y | V110: 384
A111: Gray | C111: 808080 | D111: 128 | E111: 128 | F111: 128 | G111: 8421504 | H111: 128.5019531 | I111: 128 | J111: 128.5 | K111: 128 | L111: 0.5 | M111: 128 | R111: htmlcolorcodes | S111: Gr | T111: Y | V111: 384
A112: DimGray | C112: 696969 | D112: 105 | E112: 105 | F112: 105 | G112: 6908265 | H112: 105.4117584 | I112: 105 | J112: 105.4101562 | K112: 105 | L112: 0.41015625 | M112: 105 | R112: htmlcolorcodes | S112: Gr | T112: Y | V112: 315
A113: DarkSlateGray | C113: 2F4F4F | D113: 47 | E113: 79 | F113: 79 | G113: 3100495 | H113: 47.30979919 | I113: 47 | J113: 79.30859375 | K113: 79 | L113: 0.30859375 | M113: 79 | R113: htmlcolorcodes | S113: Gr | T113: Y | V113: 205
A114: Black | C114: 000000 | D114: 0 | E114: 0 | F114: 0 | G114: 0 | H114: 0 | I114: 0 | J114: 0 | K114: 0 | L114: 0 | M114: 0 | R114: htmlcolorcodes | S114: Gr | T114: Y | V114: 0
A115: LightSalmon | C115: FFA07A | D115: 255 | E115: 160 | F115: 122 | G115: 16752762 | H115: 255.6268616 | I115: 255 | J115: 160.4765625 | K115: 160 | L115: 0.4765625 | M115: 122 | R115: htmlcolorcodes | S115: O | T115: Y | V115: 537
A116: Coral | C116: FF7F50 | D116: 255 | E116: 127 | F116: 80 | G116: 16744272 | H116: 255.4973145 | I116: 255 | J116: 127.3125 | K116: 127 | L116: 0.3125 | M116: 80 | R116: htmlcolorcodes | S116: O | T116: Y | V116: 462
A117: Tomato | C117: FF6347 | D117: 255 | E117: 99 | F117: 71 | G117: 16737095 | H117: 255.3878021 | I117: 255 | J117: 99.27734375 | K117: 99 | L117: 0.27734375 | M117: 71 | R117: htmlcolorcodes | S117: O | T117: Y | V117: 425
A118: Orange | C118: FFA500 | D118: 255 | E118: 165 | F118: 0 | G118: 16753920 | H118: 255.6445312 | I118: 255 | J118: 165 | K118: 165 | L118: 0 | M118: 0 | R118: htmlcolorcodes | S118: O | T118: Y | V118: 420
A119: DarkOrange | C119: FF8C00 | D119: 255 | E119: 140 | F119: 0 | G119: 16747520 | H119: 255.546875 | I119: 255 | J119: 140 | K119: 140 | L119: 0 | M119: 0 | R119: htmlcolorcodes | S119: O | T119: Y | V119: 395
A120: OrangeRed | C120: FF4500 | D120: 255 | E120: 69 | F120: 0 | G120: 16729344 | H120: 255.2695312 | I120: 255 | J120: 69 | K120: 69 | L120: 0 | M120: 0 | R120: htmlcolorcodes | S120: O | T120: Y | V120: 324
A121: Saffron | C121: f4c430 | D121: 244 | E121: 196 | F121: 48 | G121: 16041008 | H121: 244.7663574 | I121: 244 | J121: 196.1875 | K121: 196 | L121: 0.1875 | M121: 48 | R121: colorhexa | S121: O | V121: 488
A122: Amber | C122: ffbf00 | D122: 255 | E122: 191 | F122: 0 | G122: 16760576 | H122: 255.7460938 | I122: 255 | J122: 191 | K122: 191 | L122: 0 | M122: 0 | R122: colorhexa | S122: O | V122: 446
A123: Ginger | C123: b06500 | D123: 176 | E123: 101 | F123: 0 | G123: 11560192 | H123: 176.3945312 | I123: 176 | J123: 101 | K123: 101 | L123: 0 | M123: 0 | R123: colorhexa | S123: O | V123: 277
A124: almost pure orange | C124: ff8000 | D124: 255 | E124: 128 | F124: 0 | G124: 16744448 | H124: 255.5 | I124: 255 | J124: 128 | K124: 128 | L124: 0 | M124: 0 | N124: 30 | O124: 100 | P124: 100 | S124: O | V124: 383
A125: Dutch orange | D125: 0 | E125: 0 | F125: 0 | G125: 0 | H125: 0 | I125: 0 | J125: 0 | K125: 0 | L125: 0 | M125: 0 | S125: O | V125: 0
A126: Minium | D126: 0 | E126: 0 | F126: 0 | G126: 0 | H126: 0 | I126: 0 | J126: 0 | K126: 0 | L126: 0 | M126: 0 | S126: O | V126: 0
A127: Nude | D127: 0 | E127: 0 | F127: 0 | G127: 0 | H127: 0 | I127: 0 | J127: 0 | K127: 0 | L127: 0 | M127: 0 | S127: O | V127: 0
A128: Lavender | C128: E6E6FA | D128: 230 | E128: 230 | F128: 250 | G128: 15132410 | H128: 230.9022522 | I128: 230 | J128: 230.9765625 | K128: 230 | L128: 0.9765625 | M128: 250 | R128: htmlcolorcodes | S128: P | T128: Y | V128: 710
A129: Thistle | C129: D8BFD8 | D129: 216 | E129: 191 | F129: 216 | G129: 14204888 | H129: 216.7493896 | I129: 216 | J129: 191.84375 | K129: 191 | L129: 0.84375 | M129: 216 | R129: htmlcolorcodes | S129: P | T129: Y | V129: 623
A130: Violet | C130: EE82EE | D130: =I130 -> 238 | E130: =K130 -> 130 | F130: =M130 -> 238 | G130: =HEX2DEC(C130) -> 15631086 | H130: =G130/256^2 -> 238.5114441 | I130: =INT(H130) -> 238 | J130: =(H130-I130)*256 -> 130.9296875 | K130: =INT(J130) -> 130 | L130: =J130-K130 -> 0.9296875 | M130: =L130*256 -> 238 | R130: htmlcolorcodes | S130: P | T130: Y | V130: =SUM(D130:F130) -> 606
A131: Plum | C131: DDA0DD | D131: 221 | E131: 160 | F131: 221 | G131: 14524637 | H131: 221.6283722 | I131: 221 | J131: 160.8632812 | K131: 160 | L131: 0.86328125 | M131: 221 | R131: htmlcolorcodes | S131: P | T131: Y | V131: 602
A132: Orchid | C132: DA70D6 | D132: 218 | E132: 112 | F132: 214 | G132: 14315734 | H132: 218.4407654 | I132: 218 | J132: 112.8359375 | K132: 112 | L132: 0.8359375 | M132: 214 | R132: htmlcolorcodes | S132: P | T132: Y | V132: 544
A133: Magenta | C133: FF00FF | D133: 255 | E133: 0 | F133: 255 | G133: 16711935 | H133: 255.003891 | I133: 255 | J133: 0.99609375 | K133: 0 | L133: 0.99609375 | M133: 255 | R133: htmlcolorcodes | S133: P | T133: Y | U133: Fuschia | V133: 510
A134: MediumOrchid | C134: BA55D3 | D134: 186 | E134: 85 | F134: 211 | G134: 12211667 | H134: 186.3352509 | I134: 186 | J134: 85.82421875 | K134: 85 | L134: 0.82421875 | M134: 211 | R134: htmlcolorcodes | S134: P | T134: Y | V134: 482
A135: MediumPurple | C135: 9370DB | D135: 147 | E135: 112 | F135: 219 | G135: 9662683 | H135: 147.4408417 | I135: 147 | J135: 112.8554688 | K135: 112 | L135: 0.85546875 | M135: 219 | R135: htmlcolorcodes | S135: P | T135: Y | V135: 478
A136: MediumSlateBlue | C136: 7B68EE | D136: 123 | E136: 104 | F136: 238 | G136: 8087790 | H136: 123.4098816 | I136: 123 | J136: 104.9296875 | K136: 104 | L136: 0.9296875 | M136: 238 | R136: htmlcolorcodes | S136: P | T136: Y | V136: 465
A137: BlueViolet | C137: 8A2BE2 | D137: 138 | E137: 43 | F137: 226 | G137: 9055202 | H137: 138.1714172 | I137: 138 | J137: 43.8828125 | K137: 43 | L137: 0.8828125 | M137: 226 | R137: htmlcolorcodes | S137: P | T137: Y | V137: 407
A138: DarkOrchid | C138: 9932CC | D138: 153 | E138: 50 | F138: 204 | G138: 10040012 | H138: 153.1984253 | I138: 153 | J138: 50.796875 | K138: 50 | L138: 0.796875 | M138: 204 | R138: htmlcolorcodes | S138: P | T138: Y | V138: 407
A139: SlateBlue | C139: 6A5ACD | D139: 106 | E139: 90 | F139: 205 | G139: 6970061 | H139: 106.3546906 | I139: 106 | J139: 90.80078125 | K139: 90 | L139: 0.80078125 | M139: 205 | R139: htmlcolorcodes | S139: P | T139: Y | V139: 401
A140: DarkViolet | C140: 9400D3 | D140: 148 | E140: 0 | F140: 211 | G140: 9699539 | H140: 148.0032196 | I140: 148 | J140: 0.82421875 | K140: 0 | L140: 0.82421875 | M140: 211 | R140: htmlcolorcodes | S140: P | T140: Y | V140: 359
A141: RebeccaPurple | C141: 663399 | D141: 102 | E141: 51 | F141: 153 | G141: 6697881 | H141: 102.2015533 | I141: 102 | J141: 51.59765625 | K141: 51 | L141: 0.59765625 | M141: 153 | R141: htmlcolorcodes | S141: P | T141: Y | V141: 306
A142: DarkMagenta | C142: 8B008B | D142: 139 | E142: 0 | F142: 139 | G142: 9109643 | H142: 139.002121 | I142: 139 | J142: 0.54296875 | K142: 0 | L142: 0.54296875 | M142: 139 | R142: htmlcolorcodes | S142: P | T142: Y | V142: 278
A143: DarkSlateBlue | C143: 483D8B | D143: 72 | E143: 61 | F143: 139 | G143: 4734347 | H143: 72.24040222 | I143: 72 | J143: 61.54296875 | K143: 61 | L143: 0.54296875 | M143: 139 | R143: htmlcolorcodes | S143: P | T143: Y | V143: 272
A144: Purple | C144: 800080 | D144: 128 | E144: 0 | F144: 128 | G144: 8388736 | H144: 128.0019531 | I144: 128 | J144: 0.5 | K144: 0 | L144: 0.5 | M144: 128 | R144: htmlcolorcodes | S144: P | T144: Y | V144: 256
A145: Indigo | C145: 4B0082 | D145: 75 | E145: 0 | F145: 130 | G145: 4915330 | H145: 75.00198364 | I145: 75 | J145: 0.5078125 | K145: 0 | L145: 0.5078125 | M145: 130 | R145: htmlcolorcodes | S145: P | T145: Y | V145: 205
A146: Mauve | C146: e0b0ff | D146: 224 | E146: 176 | F146: 255 | G146: 14725375 | H146: 224.691391 | I146: 224 | J146: 176.9960938 | K146: 176 | L146: 0.99609375 | M146: 255 | N146: 0 | O146: 100 | P146: 100 | R146: colorhexa | S146: P | V146: 655
A147: Violet | C147: ee82ee | D147: 238 | E147: 130 | F147: 238 | G147: 15631086 | H147: 238.5114441 | I147: 238 | J147: 130.9296875 | K147: 130 | L147: 0.9296875 | M147: 238 | N147: 0 | O147: 0 | P147: 25 | R147: colorhexa | S147: P | V147: 606
A148: Heliotrope | C148: df73ff | D148: 223 | E148: 115 | F148: 255 | G148: 14644223 | H148: 223.4531097 | I148: 223 | J148: 115.9960938 | K148: 115 | L148: 0.99609375 | M148: 255 | N148: 120 | O148: 100 | P148: 100 | R148: colorhexa | S148: P | V148: 593
A149: Tyrian Purple | C149: 66023c | D149: 102 | E149: 2 | F149: 60 | G149: 6685244 | H149: 102.008728 | I149: 102 | J149: 2.234375 | K149: 2 | L149: 0.234375 | M149: 60 | N149: 0 | O149: 0 | P149: 50 | R149: colorhexa | S149: P | V149: 164
A150: Orchil | D150: 0 | E150: 0 | F150: 0 | G150: 0 | H150: 0 | I150: 0 | J150: 0 | K150: 0 | L150: 0 | M150: 0 | N150: 0 | O150: 0 | P150: 75 | S150: P | V150: 0
A151: Pink | C151: FFC0CB | D151: 255 | E151: 192 | F151: 203 | G151: 16761035 | H151: 255.7530975 | I151: 255 | J151: 192.7929688 | K151: 192 | L151: 0.79296875 | M151: 203 | R151: htmlcolorcodes | S151: Pk | T151: Y | V151: 650
A152: LightPink | C152: FFB6C1 | D152: 255 | E152: 182 | F152: 193 | G152: 16758465 | H152: 255.7138824 | I152: 255 | J152: 182.7539062 | K152: 182 | L152: 0.75390625 | M152: 193 | R152: htmlcolorcodes | S152: Pk | T152: Y | V152: 630
A153: HotPink | C153: FF69B4 | D153: 255 | E153: 105 | F153: 180 | G153: 16738740 | H153: 255.4129028 | I153: 255 | J153: 105.703125 | K153: 105 | L153: 0.703125 | M153: 180 | R153: htmlcolorcodes | S153: Pk | T153: Y | V153: 540
A154: PaleVioletRed | C154: DB7093 | D154: 219 | E154: 112 | F154: 147 | G154: 14381203 | H154: 219.439743 | I154: 219 | J154: 112.5742188 | K154: 112 | L154: 0.57421875 | M154: 147 | R154: htmlcolorcodes | S154: Pk | T154: Y | V154: 478
A155: DeepPink | C155: FF1493 | D155: 255 | E155: 20 | F155: 147 | G155: 16716947 | H155: 255.080368 | I155: 255 | J155: 20.57421875 | K155: 20 | L155: 0.57421875 | M155: 147 | R155: htmlcolorcodes | S155: Pk | T155: Y | V155: 422
A156: MediumVioletRed | C156: C71585 | D156: 199 | E156: 21 | F156: 133 | G156: 13047173 | H156: 199.0840607 | I156: 199 | J156: 21.51953125 | K156: 21 | L156: 0.51953125 | M156: 133 | R156: htmlcolorcodes | S156: Pk | T156: Y | V156: 353
A157: Puce | C157: cc8899 | D157: 204 | E157: 136 | F157: 153 | G157: 13404313 | H157: 204.5335846 | I157: 204 | J157: 136.5976562 | K157: 136 | L157: 0.59765625 | M157: 153 | R157: colorhexa | S157: Pk | V157: 493
A158: Shocking Pink | C158: fc0fc0 | D158: 252 | E158: 15 | F158: 192 | G158: 16519104 | H158: 252.0615234 | I158: 252 | J158: 15.75 | K158: 15 | L158: 0.75 | M158: 192 | R158: colorhexa | S158: Pk | V158: 459
A159: Mountbatten Pink | C159: 997a8d | D159: 153 | E159: 122 | F159: 141 | G159: 10058381 | H159: 153.478714 | I159: 153 | J159: 122.5507812 | K159: 122 | L159: 0.55078125 | M159: 141 | R159: colorhexa | S159: Pk | V159: 416
A160: Amaranth | C160: e52b50 | D160: 229 | E160: 43 | F160: 80 | G160: 15018832 | H160: 229.1691895 | I160: 229 | J160: 43.3125 | K160: 43 | L160: 0.3125 | M160: 80 | R160: colorhexa | S160: Pk | V160: 352
A161: Baker-Miller Pink | D161: 0 | E161: 0 | F161: 0 | G161: 0 | H161: 0 | I161: 0 | J161: 0 | K161: 0 | L161: 0 | M161: 0 | S161: Pk | V161: 0
A162: Flourescent Pink | D162: 0 | E162: 0 | F162: 0 | G162: 0 | H162: 0 | I162: 0 | J162: 0 | K162: 0 | L162: 0 | M162: 0 | S162: Pk | V162: 0
A163: LightSalmon | C163: FFA07A | D163: 255 | E163: 160 | F163: 122 | G163: 16752762 | H163: 255.6268616 | I163: 255 | J163: 160.4765625 | K163: 160 | L163: 0.4765625 | M163: 122 | R163: htmlcolorcodes | S163: R | T163: Y | V163: 537
A164: DarkSalmon | C164: E9967A | D164: 233 | E164: 150 | F164: 122 | G164: 15308410 | H164: 233.5877991 | I164: 233 | J164: 150.4765625 | K164: 150 | L164: 0.4765625 | M164: 122 | R164: htmlcolorcodes | S164: R | T164: Y | V164: 505
A165: LightCoral | C165: F08080 | D165: 240 | E165: 128 | F165: 128 | G165: 15761536 | H165: 240.5019531 | I165: 240 | J165: 128.5 | K165: 128 | L165: 0.5 | M165: 128 | R165: htmlcolorcodes | S165: R | T165: Y | V165: 496
A166: Salmon | C166: FA8072 | D166: 250 | E166: 128 | F166: 114 | G166: 16416882 | H166: 250.5017395 | I166: 250 | J166: 128.4453125 | K166: 128 | L166: 0.4453125 | M166: 114 | R166: htmlcolorcodes | S166: R | T166: Y | V166: 492
A167: IndianRed | C167: CD5C5C | D167: 205 | E167: 92 | F167: 92 | G167: 13458524 | H167: 205.3607788 | I167: 205 | J167: 92.359375 | K167: 92 | L167: 0.359375 | M167: 92 | R167: htmlcolorcodes | S167: R | T167: Y | V167: 389
A168: Crimson | C168: DC143C | D168: 220 | E168: 20 | F168: 60 | G168: 14423100 | H168: 220.0790405 | I168: 220 | J168: 20.234375 | K168: 20 | L168: 0.234375 | M168: 60 | R168: htmlcolorcodes | S168: R | T168: Y | V168: 300
A169: Red | C169: FF0000 | D169: 255 | E169: 0 | F169: 0 | G169: 16711680 | H169: 255 | I169: 255 | J169: 0 | K169: 0 | L169: 0 | M169: 0 | R169: htmlcolorcodes | S169: R | T169: Y | V169: 255
A170: FireBrick | C170: B22222 | D170: 178 | E170: 34 | F170: 34 | G170: 11674146 | H170: 178.1333313 | I170: 178 | J170: 34.1328125 | K170: 34 | L170: 0.1328125 | M170: 34 | R170: htmlcolorcodes | S170: R | T170: Y | V170: 246
A171: DarkRed | C171: 8B0000 | D171: 139 | E171: 0 | F171: 0 | G171: 9109504 | H171: 139 | I171: 139 | J171: 0 | K171: 0 | L171: 0 | M171: 0 | R171: htmlcolorcodes | S171: R | T171: Y | V171: 139
A172: Vermilion | C172: e34234 | D172: 227 | E172: 66 | F172: 52 | G172: 14893620 | H172: 227.258606 | I172: 227 | J172: 66.203125 | K172: 66 | L172: 0.203125 | M172: 52 | R172: colorhexa | S172: R | U172: Cinnabar | V172: 345
A173: Scarlet | C173: ff2400 | D173: 255 | E173: 36 | F173: 0 | G173: 16720896 | H173: 255.140625 | I173: 255 | J173: 36 | K173: 36 | L173: 0 | M173: 0 | R173: colorhexa | S173: R | V173: 291
A174: Cochineal | D174: 0 | E174: 0 | F174: 0 | G174: 0 | H174: 0 | I174: 0 | J174: 0 | K174: 0 | L174: 0 | M174: 0 | S174: R | V174: 0
A175: Rossa Corsa | D175: 0 | E175: 0 | F175: 0 | G175: 0 | H175: 0 | I175: 0 | J175: 0 | K175: 0 | L175: 0 | M175: 0 | S175: R | V175: 0
A176: Hematite | D176: 0 | E176: 0 | F176: 0 | G176: 0 | H176: 0 | I176: 0 | J176: 0 | K176: 0 | L176: 0 | M176: 0 | S176: R | V176: 0
A177: Madder | D177: 0 | E177: 0 | F177: 0 | G177: 0 | H177: 0 | I177: 0 | J177: 0 | K177: 0 | L177: 0 | M177: 0 | S177: R | V177: 0
A178: Dragons Blood | D178: 0 | E178: 0 | F178: 0 | G178: 0 | H178: 0 | I178: 0 | J178: 0 | K178: 0 | L178: 0 | M178: 0 | S178: R | V178: 0
A179: White | C179: FFFFFF | D179: 255 | E179: 255 | F179: 255 | G179: 16777215 | H179: 255.9999847 | I179: 255 | J179: 255.9960938 | K179: 255 | L179: 0.99609375 | M179: 255 | R179: htmlcolorcodes | S179: W | T179: Y | V179: 765
A180: Snow | C180: FFFAFA | D180: 255 | E180: 250 | F180: 250 | G180: 16775930 | H180: 255.9803772 | I180: 255 | J180: 250.9765625 | K180: 250 | L180: 0.9765625 | M180: 250 | R180: htmlcolorcodes | S180: W | T180: Y | V180: 755
A181: GhostWhite | C181: F8F8FF | D181: 248 | E181: 248 | F181: 255 | G181: 16316671 | H181: 248.972641 | I181: 248 | J181: 248.9960938 | K181: 248 | L181: 0.99609375 | M181: 255 | R181: htmlcolorcodes | S181: W | T181: Y | V181: 751
A182: Azure | C182: F0FFFF | D182: 240 | E182: 255 | F182: 255 | G182: 15794175 | H182: 240.9999847 | I182: 240 | J182: 255.9960938 | K182: 255 | L182: 0.99609375 | M182: 255 | R182: htmlcolorcodes | S182: W | T182: Y | V182: 750
A183: MintCream | C183: F5FFFA | D183: 245 | E183: 255 | F183: 250 | G183: 16121850 | H183: 245.9999084 | I183: 245 | J183: 255.9765625 | K183: 255 | L183: 0.9765625 | M183: 250 | R183: htmlcolorcodes | S183: W | T183: Y | V183: 750
A184: Ivory | C184: FFFFF0 | D184: 255 | E184: 255 | F184: 240 | G184: 16777200 | H184: 255.9997559 | I184: 255 | J184: 255.9375 | K184: 255 | L184: 0.9375 | M184: 240 | R184: htmlcolorcodes | S184: W | T184: Y | V184: 750
A185: FloralWhite | C185: FFFAF0 | D185: 255 | E185: 250 | F185: 240 | G185: 16775920 | H185: 255.9802246 | I185: 255 | J185: 250.9375 | K185: 250 | L185: 0.9375 | M185: 240 | R185: htmlcolorcodes | S185: W | T185: Y | V185: 745
A186: AliceBlue | C186: F0F8FF | D186: 240 | E186: 248 | F186: 255 | G186: 15792383 | H186: 240.972641 | I186: 240 | J186: 248.9960938 | K186: 248 | L186: 0.99609375 | M186: 255 | R186: htmlcolorcodes | S186: W | T186: Y | V186: 743
A187: LavenderBlush | C187: FFF0F5 | D187: 255 | E187: 240 | F187: 245 | G187: 16773365 | H187: 255.9412384 | I187: 255 | J187: 240.9570312 | K187: 240 | L187: 0.95703125 | M187: 245 | R187: htmlcolorcodes | S187: W | T187: Y | V187: 740
A188: SeaShell | C188: FFF5EE | D188: 255 | E188: 245 | F188: 238 | G188: 16774638 | H188: 255.9606628 | I188: 255 | J188: 245.9296875 | K188: 245 | L188: 0.9296875 | M188: 238 | R188: htmlcolorcodes | S188: W | T188: Y | V188: 738
A189: WhiteSmoke | C189: F5F5F5 | D189: 245 | E189: 245 | F189: 245 | G189: 16119285 | H189: 245.9607697 | I189: 245 | J189: 245.9570312 | K189: 245 | L189: 0.95703125 | M189: 245 | R189: htmlcolorcodes | S189: W | T189: Y | V189: 735
A190: HoneyDew | C190: F0FFF0 | D190: 240 | E190: 255 | F190: 240 | G190: 15794160 | H190: 240.9997559 | I190: 240 | J190: 255.9375 | K190: 255 | L190: 0.9375 | M190: 240 | R190: htmlcolorcodes | S190: W | T190: Y | V190: 735
A191: OldLace | C191: FDF5E6 | D191: 253 | E191: 245 | F191: 230 | G191: 16643558 | H191: 253.9605408 | I191: 253 | J191: 245.8984375 | K191: 245 | L191: 0.8984375 | M191: 230 | R191: htmlcolorcodes | S191: W | T191: Y | V191: 728
A192: Linen | C192: FAF0E6 | D192: 250 | E192: 240 | F192: 230 | G192: 16445670 | H192: 250.9410095 | I192: 250 | J192: 240.8984375 | K192: 240 | L192: 0.8984375 | M192: 230 | R192: htmlcolorcodes | S192: W | T192: Y | V192: 720
A193: Beige | C193: F5F5DC | D193: 245 | E193: 245 | F193: 220 | G193: 16119260 | H193: 245.9603882 | I193: 245 | J193: 245.859375 | K193: 245 | L193: 0.859375 | M193: 220 | R193: htmlcolorcodes | S193: W | T193: Y | V193: 710
A194: MistyRose | C194: FFE4E1 | D194: =I194 -> 255 | E194: =K194 -> 228 | F194: =M194 -> 225 | G194: =HEX2DEC(C194) -> 16770273 | H194: =G194/256^2 -> 255.8940582 | I194: =INT(H194) -> 255 | J194: =(H194-I194)*256 -> 228.8789062 | K194: =INT(J194) -> 228 | L194: =J194-K194 -> 0.87890625 | M194: =L194*256 -> 225 | R194: htmlcolorcodes | S194: W | T194: Y | V194: =SUM(D194:F194) -> 708
A195: AntiqueWhite | C195: FAEBD7 | D195: 250 | E195: 235 | F195: 215 | G195: 16444375 | H195: 250.9212494 | I195: 250 | J195: 235.8398438 | K195: 235 | L195: 0.83984375 | M195: 215 | R195: htmlcolorcodes | S195: W | T195: Y | V195: 700
A196: Isabelline | C196: f4f0ec | D196: 244 | E196: 240 | F196: 236 | G196: 16052460 | H196: 244.9411011 | I196: 244 | J196: 240.921875 | K196: 240 | L196: 0.921875 | M196: 236 | Q196: 60 | R196: colorhexa | S196: W | V196: 720
A197: Beige | C197: f5f5dc | D197: 245 | E197: 245 | F197: 220 | G197: 16119260 | H197: 245.9603882 | I197: 245 | J197: 245.859375 | K197: 245 | L197: 0.859375 | M197: 220 | Q197: 80 | R197: colorhexa | S197: W | V197: 710
A198: Silver | C198: c0c0c0 | D198: 192 | E198: 192 | F198: 192 | G198: 12632256 | H198: 192.7529297 | I198: 192 | J198: 192.75 | K198: 192 | L198: 0.75 | M198: 192 | Q198: 40 | R198: colorhexa | S198: W | V198: 576
A199: Lead White | D199: 0 | E199: 0 | F199: 0 | G199: 0 | H199: 0 | I199: 0 | J199: 0 | K199: 0 | L199: 0 | M199: 0 | Q199: 20 | S199: W | V199: 0
A200: Whitewash | D200: 0 | E200: 0 | F200: 0 | G200: 0 | H200: 0 | I200: 0 | J200: 0 | K200: 0 | L200: 0 | M200: 0 | Q200: 50 | S200: W | V200: 0
... 40 more rows

Sheet Figure 17.
B1: hue | C1: HTML | D1: R | E1: G | F1: B | G1: Pct | H1: Increments | K1: Results | N1: Boundaries
A2: FFFFFF | C2: =DEC2HEX(($D2*65536)+($E2*256)+$F2) -> FFFFFF | D2: 255 | E2: 255 | F2: 255 | G2: 0
A3: F3F3F3 | C3: =DEC2HEX(($D3*65536)+($E3*256)+$F3) -> F3F3F3 | D3: =IF(N3<0,0,N3) -> 243 | E3: 243 | F3: 243 | G3: 5 | H3: =ROUNDDOWN($G3/100*D$23,0) -> -12 | I3: =ROUNDDOWN($G3/100*E$23,0) -> -12 | J3: =ROUNDDOWN($G3/100*F$23,0) -> -12 | K3: =D$2+H3 -> 243 | L3: =E$2+I3 -> 243 | M3: =F$2+J3 -> 243 | N3: =IF(K3>255,255,K3) -> 243 | O3: =IF(L3>255,255,L3) -> 243 | P3: 243 | R3: VALUE | S3: R | T3: G | U3: B | V3: HEX
A4: E6E6E6 | C4: =DEC2HEX(($D4*65536)+($E4*256)+$F4) -> E6E6E6 | D4: 230 | E4: 230 | F4: 230 | G4: 10 | H4: -25 | I4: =ROUNDDOWN($G4/100*E$23,0) -> -25 | J4: -25 | K4: =D$2+H4 -> 230 | L4: =E$2+I4 -> 230 | M4: =F$2+J4 -> 230 | N4: =IF(K4>255,255,K4) -> 230 | O4: 230 | P4: 230 | S4: 255 | T4: 255 | U4: 255 | V4: FFFFFF
A5: D9D9D9 | C5: D9D9D9 | D5: 217 | E5: 217 | F5: 217 | G5: 15 | H5: -38 | I5: -38 | J5: -38 | K5: 217 | L5: 217 | M5: 217 | N5: 217 | O5: 217 | P5: 217 | S5: 243 | T5: 243 | U5: 243 | V5: F3F3F3
A6: CCCCCC | C6: CCCCCC | D6: 204 | E6: 204 | F6: 204 | G6: 20 | H6: -51 | I6: -51 | J6: -51 | K6: 204 | L6: 204 | M6: 204 | N6: 204 | O6: 204 | P6: 204 | S6: 230 | T6: 230 | U6: 230 | V6: E6E6E6
A7: C0C0C0 | C7: C0C0C0 | D7: 192 | E7: 192 | F7: 192 | G7: 25 | H7: -63 | I7: -63 | J7: -63 | K7: 192 | L7: 192 | M7: 192 | N7: 192 | O7: 192 | P7: 192 | S7: 217 | T7: 217 | U7: 217 | V7: D9D9D9
A8: B3B3B3 | C8: B3B3B3 | D8: 179 | E8: 179 | F8: 179 | G8: 30 | H8: -76 | I8: -76 | J8: -76 | K8: 179 | L8: 179 | M8: 179 | N8: 179 | O8: 179 | P8: 179 | S8: 204 | T8: 204 | U8: 204 | V8: CCCCCC
A9: A6A6A6 | C9: A6A6A6 | D9: 166 | E9: 166 | F9: 166 | G9: 35 | H9: -89 | I9: -89 | J9: -89 | K9: 166 | L9: 166 | M9: 166 | N9: 166 | O9: 166 | P9: 166 | S9: 192 | T9: 192 | U9: 192 | V9: C0C0C0
A10: 999999 | C10: 999999 | D10: 153 | E10: 153 | F10: 153 | G10: 40 | H10: -102 | I10: -102 | J10: -102 | K10: 153 | L10: 153 | M10: 153 | N10: 153 | O10: 153 | P10: 153 | S10: 179 | T10: 179 | U10: 179 | V10: B3B3B3
A11: 8D8D8D | C11: 8D8D8D | D11: 141 | E11: 141 | F11: 141 | G11: 45 | H11: -114 | I11: -114 | J11: -114 | K11: 141 | L11: 141 | M11: 141 | N11: 141 | O11: 141 | P11: 141 | S11: 166 | T11: 166 | U11: 166 | V11: A6A6A6
A12: 808080 | C12: 808080 | D12: =IF(N12<0,0,N12) -> 128 | E12: =IF(O12<0,0,O12) -> 128 | F12: =IF(P12<0,0,P12) -> 128 | G12: 50 | H12: =ROUNDDOWN($G12/100*D$23,0) -> -127 | I12: =ROUNDDOWN($G12/100*E$23,0) -> -127 | J12: =ROUNDDOWN($G12/100*F$23,0) -> -127 | K12: =D$2+H12 -> 128 | L12: =E$2+I12 -> 128 | M12: =F$2+J12 -> 128 | N12: =IF(K12>255,255,K12) -> 128 | O12: =IF(L12>255,255,L12) -> 128 | P12: =IF(M12>255,255,M12) -> 128 | S12: 153 | T12: 153 | U12: 153 | V12: 999999
A13: 737373 | C13: 737373 | D13: 115 | E13: 115 | F13: 115 | G13: 55 | H13: -140 | I13: -140 | J13: -140 | K13: 115 | L13: 115 | M13: 115 | N13: 115 | O13: 115 | P13: 115 | S13: 141 | T13: 141 | U13: 141 | V13: 8D8D8D
A14: 666666 | C14: 666666 | D14: 102 | E14: 102 | F14: 102 | G14: 60 | H14: -153 | I14: -153 | J14: -153 | K14: 102 | L14: 102 | M14: 102 | N14: 102 | O14: 102 | P14: 102 | S14: 128 | T14: 128 | U14: 128 | V14: 808080
A15: 5A5A5A | C15: 5A5A5A | D15: 90 | E15: 90 | F15: 90 | G15: 65 | H15: -165 | I15: -165 | J15: -165 | K15: 90 | L15: 90 | M15: 90 | N15: 90 | O15: 90 | P15: 90 | S15: 115 | T15: 115 | U15: 115 | V15: 737373
A16: 4D4D4D | C16: 4D4D4D | D16: 77 | E16: 77 | F16: 77 | G16: 70 | H16: -178 | I16: -178 | J16: -178 | K16: 77 | L16: 77 | M16: 77 | N16: 77 | O16: 77 | P16: 77 | S16: 102 | T16: 102 | U16: 102 | V16: 666666
A17: 404040 | C17: 404040 | D17: 64 | E17: 64 | F17: 64 | G17: 75 | H17: -191 | I17: -191 | J17: -191 | K17: 64 | L17: 64 | M17: 64 | N17: 64 | O17: 64 | P17: 64 | S17: 90 | T17: 90 | U17: 90 | V17: 5A5A5A
A18: 333333 | C18: 333333 | D18: 51 | E18: 51 | F18: 51 | G18: 80 | H18: -204 | I18: -204 | J18: -204 | K18: 51 | L18: 51 | M18: 51 | N18: 51 | O18: 51 | P18: 51 | S18: 77 | T18: 77 | U18: 77 | V18: 4D4D4D
A19: 272727 | C19: 272727 | D19: 39 | E19: 39 | F19: 39 | G19: 85 | H19: -216 | I19: -216 | J19: -216 | K19: 39 | L19: 39 | M19: 39 | N19: 39 | O19: 39 | P19: 39 | S19: 64 | T19: 64 | U19: 64 | V19: 404040
A20: 1A1A1A | C20: 1A1A1A | D20: 26 | E20: 26 | F20: 26 | G20: 90 | H20: -229 | I20: -229 | J20: -229 | K20: 26 | L20: 26 | M20: 26 | N20: 26 | O20: 26 | P20: 26 | S20: 51 | T20: 51 | U20: 51 | V20: 333333
A21: D0D0D | C21: D0D0D | D21: 13 | E21: 13 | F21: 13 | G21: 95 | H21: -242 | I21: -242 | J21: -242 | K21: 13 | L21: 13 | M21: 13 | N21: 13 | O21: 13 | P21: 13 | S21: 39 | T21: 39 | U21: 39 | V21: 272727
A22: 000000 | C22: 0 | D22: 0 | E22: 0 | F22: 0 | G22: 100 | H22: -255 | I22: -255 | J22: -255 | K22: 0 | L22: 0 | M22: 0 | N22: 0 | O22: 0 | P22: 0 | S22: 26 | T22: 26 | U22: 26 | V22: 1A1A1A
D23: =D22-D2 -> -255 | E23: =E22-E2 -> -255 | F23: =F22-F2 -> -255 | S23: 13 | T23: 13 | U23: 13 | V23: D0D0D
D24: 223 | E24: 200 | F24: 255 | S24: 0 | T24: 0 | U24: 0 | V24: 000000

Sheet Figure 18.
A1: 256 | B1: 8 | D1: 4 | E1: 5 | F1: 6 | G1: 7 | H1: 8 | I1: 9 | J1: 10 | K1: 11 | L1: 12 | M1: 13 | N1: 14 | O1: 15 | P1: 16 | Q1: 17 | R1: 18 | S1: 19 | T1: 20 | U1: 21 | V1: 22 | W1: 23 | X1: 24 | Y1: 25 | Z1: 26 | AA1: 27 | AB1: 28 | AC1: 29 | AD1: 30 | AE1: 31 | AF1: 32 | AG1: 33 | AH1: 34 | AI1: 35 | AJ1: 36 | AK1: 37 | AL1: 38 | AM1: 39 | AN1: 40 | AO1: 41 | AP1: 42 | AQ1: 43 | AR1: 44 | AS1: 45 | AT1: 46 | AU1: 47 | AV1: 48 | AW1: 49 | AX1: 50 | AY1: 51 | AZ1: 52 | BA1: 53 | BB1: 54 | BC1: 55 | BD1: 56 | BE1: 57 | BF1: 58 | BG1: 59 | BH1: 60 | BI1: 61 | BJ1: 62 | BK1: 63 | BL1: 64 | BM1: 65 | BN1: 66 | BO1: 67 | BP1: 68 | BQ1: 69 | BR1: 70 | BS1: 71 | BT1: 72 | BU1: 73 | BV1: 74 | BW1: 75 | BX1: 76 | BY1: 77 | BZ1: 78 | CA1: 79 | CB1: 80 | CC1: 81 | CD1: 82 | CE1: 83 | CF1: 84 | CG1: 85 | CH1: 86
C2: B | D2: RR | E2: GG | F2: BB | G2: RR | H2: GG | I2: BB | J2: RR | K2: GG | L2: BB | M2: RR | N2: GG | O2: BB | P2: RR | Q2: GG | R2: BB | S2: RR | T2: GG | U2: BB | V2: RR | W2: GG | X2: BB | Y2: RR | Z2: GG | AA2: BB | AB2: RR | AC2: GG | AD2: BB
B3: R | C3: G | D3: 0 | E3: 0 | F3: 0 | G3: =D3+($A$1/$B$1) -> 32 | H3: =E3+($A$1/$B$1) -> 32 | I3: 32 | J3: =G3+($A$1/$B$1) -> 64 | K3: =H3+($A$1/$B$1) -> 64 | L3: 64 | M3: =J3+($A$1/$B$1) -> 96 | N3: =K3+($A$1/$B$1) -> 96 | O3: =L3+($A$1/$B$1) -> 96 | P3: =M3+($A$1/$B$1) -> 128 | Q3: 128 | R3: 128 | S3: =P3+($A$1/$B$1) -> 160 | T3: =Q3+($A$1/$B$1) -> 160 | U3: =R3+($A$1/$B$1) -> 160 | V3: =S3+($A$1/$B$1) -> 192 | W3: =T3+($A$1/$B$1) -> 192 | X3: =U3+($A$1/$B$1) -> 192 | Y3: =V3+($A$1/$B$1) -> 224 | Z3: =W3+($A$1/$B$1) -> 224 | AA3: =X3+($A$1/$B$1) -> 224 | AB3: =Y3+($A$1/$B$1) -> 256 | AC3: =Z3+($A$1/$B$1) -> 256 | AD3: =AA3+($A$1/$B$1) -> 256 | AF3: RGB | AO3: RBG | AW3: GRB | BE3: GBR | BM3: BRG | BU3: BGR
B4: 0 | C4: 0 | D4: =$B4 -> 0 | E4: =$C4 -> 0 | F4: =F$3 -> 0 | G4: =$B4 -> 0 | H4: =$C4 -> 0 | I4: =I$3 -> 32 | J4: =$B4 -> 0 | K4: =$C4 -> 0 | L4: =L$3 -> 64 | M4: =$B4 -> 0 | N4: =$C4 -> 0 | O4: =O$3 -> 96 | P4: =$B4 -> 0 | Q4: =$C4 -> 0 | R4: =R$3 -> 128 | S4: =$B4 -> 0 | T4: =$C4 -> 0 | U4: =U$3 -> 160 | V4: =$B4 -> 0 | W4: =$C4 -> 0 | X4: =X$3 -> 192 | Y4: =$B4 -> 0 | Z4: =$C4 -> 0 | AA4: =AA$3 -> 224 | AB4: =$B4 -> 0 | AC4: =$C4 -> 0 | AD4: =AD$3 -> 256
B5: 0 | C5: =C4+($A$1/$B$1) -> 32 | D5: =$B5 -> 0 | E5: =$C5 -> 32 | F5: =F$3 -> 0 | G5: =$B5 -> 0 | H5: =$C5 -> 32 | I5: =I$3 -> 32 | J5: =$B5 -> 0 | K5: =$C5 -> 32 | L5: =L$3 -> 64 | M5: =$B5 -> 0 | N5: =$C5 -> 32 | O5: =O$3 -> 96 | P5: =$B5 -> 0 | Q5: =$C5 -> 32 | R5: =R$3 -> 128 | S5: =$B5 -> 0 | T5: =$C5 -> 32 | U5: =U$3 -> 160 | V5: =$B5 -> 0 | W5: =$C5 -> 32 | X5: =X$3 -> 192 | Y5: =$B5 -> 0 | Z5: =$C5 -> 32 | AA5: =AA$3 -> 224 | AB5: =$B5 -> 0 | AC5: =$C5 -> 32 | AD5: =AD$3 -> 256
B6: 0 | C6: =C5+($A$1/$B$1) -> 64 | D6: =$B6 -> 0 | E6: =$C6 -> 64 | F6: 0 | G6: =$B6 -> 0 | H6: =$C6 -> 64 | I6: 32 | J6: =$B6 -> 0 | K6: =$C6 -> 64 | L6: 64 | M6: =$B6 -> 0 | N6: =$C6 -> 64 | O6: 96 | P6: =$B6 -> 0 | Q6: =$C6 -> 64 | R6: 128 | S6: =$B6 -> 0 | T6: =$C6 -> 64 | U6: 160 | V6: =$B6 -> 0 | W6: =$C6 -> 64 | X6: 192 | Y6: =$B6 -> 0 | Z6: =$C6 -> 64 | AA6: 224 | AB6: =$B6 -> 0 | AC6: =$C6 -> 64 | AD6: 256
B7: 0 | C7: 96 | D7: =$B7 -> 0 | E7: 96 | F7: 0 | G7: =$B7 -> 0 | H7: 96 | I7: 32 | J7: =$B7 -> 0 | K7: 96 | L7: 64 | M7: =$B7 -> 0 | N7: 96 | O7: 96 | P7: =$B7 -> 0 | Q7: 96 | R7: 128 | S7: =$B7 -> 0 | T7: 96 | U7: 160 | V7: =$B7 -> 0 | W7: 96 | X7: 192 | Y7: =$B7 -> 0 | Z7: 96 | AA7: 224 | AB7: =$B7 -> 0 | AC7: 96 | AD7: 256
B8: 0 | C8: 128 | D8: 0 | E8: 128 | F8: 0 | G8: 0 | H8: 128 | I8: 32 | J8: 0 | K8: 128 | L8: 64 | M8: 0 | N8: 128 | O8: 96 | P8: 0 | Q8: 128 | R8: 128 | S8: 0 | T8: 128 | U8: 160 | V8: 0 | W8: 128 | X8: 192 | Y8: 0 | Z8: 128 | AA8: 224 | AB8: 0 | AC8: 128 | AD8: 256
B9: 0 | C9: 160 | D9: 0 | E9: 160 | F9: 0 | G9: 0 | H9: 160 | I9: 32 | J9: 0 | K9: 160 | L9: 64 | M9: 0 | N9: 160 | O9: 96 | P9: 0 | Q9: 160 | R9: 128 | S9: 0 | T9: 160 | U9: 160 | V9: 0 | W9: 160 | X9: 192 | Y9: 0 | Z9: 160 | AA9: 224 | AB9: 0 | AC9: 160 | AD9: 256
B10: 0 | C10: 192 | D10: 0 | E10: 192 | F10: 0 | G10: 0 | H10: 192 | I10: 32 | J10: 0 | K10: 192 | L10: 64 | M10: 0 | N10: 192 | O10: 96 | P10: 0 | Q10: 192 | R10: 128 | S10: 0 | T10: 192 | U10: 160 | V10: 0 | W10: 192 | X10: 192 | Y10: 0 | Z10: 192 | AA10: 224 | AB10: 0 | AC10: 192 | AD10: 256
B11: 0 | C11: 224 | D11: 0 | E11: 224 | F11: 0 | G11: 0 | H11: 224 | I11: 32 | J11: 0 | K11: 224 | L11: 64 | M11: 0 | N11: 224 | O11: 96 | P11: 0 | Q11: 224 | R11: 128 | S11: 0 | T11: 224 | U11: 160 | V11: 0 | W11: 224 | X11: 192 | Y11: 0 | Z11: 224 | AA11: 224 | AB11: 0 | AC11: 224 | AD11: 256
B12: 0 | C12: 256 | D12: 0 | E12: 256 | F12: 0 | G12: 0 | H12: 256 | I12: 32 | J12: 0 | K12: 256 | L12: 64 | M12: 0 | N12: 256 | O12: 96 | P12: 0 | Q12: 256 | R12: 128 | S12: 0 | T12: 256 | U12: 160 | V12: 0 | W12: 256 | X12: 192 | Y12: 0 | Z12: 256 | AA12: 224 | AB12: 0 | AC12: 256 | AD12: 256
B13: =B$11+($A$1/$B$1) -> 32 | C13: 0 | D13: =$B13 -> 32 | E13: 0 | F13: 0 | G13: =$B13 -> 32 | H13: 0 | I13: 32 | J13: =$B13 -> 32 | K13: 0 | L13: 64 | M13: =$B13 -> 32 | N13: 0 | O13: 96 | P13: =$B13 -> 32 | Q13: 0 | R13: 128 | S13: =$B13 -> 32 | T13: 0 | U13: 160 | V13: =$B13 -> 32 | W13: 0 | X13: 192 | Y13: =$B13 -> 32 | Z13: 0 | AA13: 224 | AB13: =$B13 -> 32 | AC13: 0 | AD13: 256
B14: =B$11+($A$1/$B$1) -> 32 | C14: =C13+($A$1/$B$1) -> 32 | D14: =$B14 -> 32 | E14: 32 | F14: 0 | G14: =$B14 -> 32 | H14: 32 | I14: 32 | J14: =$B14 -> 32 | K14: 32 | L14: 64 | M14: =$B14 -> 32 | N14: 32 | O14: 96 | P14: =$B14 -> 32 | Q14: 32 | R14: 128 | S14: =$B14 -> 32 | T14: 32 | U14: 160 | V14: =$B14 -> 32 | W14: 32 | X14: 192 | Y14: =$B14 -> 32 | Z14: 32 | AA14: 224 | AB14: =$B14 -> 32 | AC14: 32 | AD14: 256
B15: 32 | C15: =C14+($A$1/$B$1) -> 64 | D15: 32 | E15: 64 | F15: 0 | G15: 32 | H15: 64 | I15: 32 | J15: 32 | K15: 64 | L15: 64 | M15: 32 | N15: 64 | O15: 96 | P15: 32 | Q15: 64 | R15: 128 | S15: 32 | T15: 64 | U15: 160 | V15: 32 | W15: 64 | X15: 192 | Y15: 32 | Z15: 64 | AA15: 224 | AB15: 32 | AC15: 64 | AD15: 256
B16: 32 | C16: 96 | D16: 32 | E16: 96 | F16: 0 | G16: 32 | H16: 96 | I16: 32 | J16: 32 | K16: 96 | L16: 64 | M16: 32 | N16: 96 | O16: 96 | P16: 32 | Q16: 96 | R16: 128 | S16: 32 | T16: 96 | U16: 160 | V16: 32 | W16: 96 | X16: 192 | Y16: 32 | Z16: 96 | AA16: 224 | AB16: 32 | AC16: 96 | AD16: 256
B17: =B$11+($A$1/$B$1) -> 32 | C17: 128 | D17: 32 | E17: 128 | F17: 0 | G17: 32 | H17: 128 | I17: 32 | J17: 32 | K17: 128 | L17: 64 | M17: 32 | N17: 128 | O17: 96 | P17: 32 | Q17: 128 | R17: 128 | S17: 32 | T17: 128 | U17: 160 | V17: 32 | W17: 128 | X17: 192 | Y17: 32 | Z17: 128 | AA17: 224 | AB17: 32 | AC17: 128 | AD17: 256
B18: 32 | C18: 160 | D18: 32 | E18: 160 | F18: 0 | G18: 32 | H18: 160 | I18: 32 | J18: 32 | K18: 160 | L18: 64 | M18: 32 | N18: 160 | O18: 96 | P18: 32 | Q18: 160 | R18: 128 | S18: 32 | T18: 160 | U18: 160 | V18: 32 | W18: 160 | X18: 192 | Y18: 32 | Z18: 160 | AA18: 224 | AB18: 32 | AC18: 160 | AD18: 256
B19: 32 | C19: 192 | D19: 32 | E19: 192 | F19: 0 | G19: 32 | H19: 192 | I19: 32 | J19: 32 | K19: 192 | L19: 64 | M19: 32 | N19: 192 | O19: 96 | P19: 32 | Q19: 192 | R19: 128 | S19: 32 | T19: 192 | U19: 160 | V19: 32 | W19: 192 | X19: 192 | Y19: 32 | Z19: 192 | AA19: 224 | AB19: 32 | AC19: 192 | AD19: 256
B20: 32 | C20: 224 | D20: 32 | E20: 224 | F20: 0 | G20: 32 | H20: 224 | I20: 32 | J20: 32 | K20: 224 | L20: 64 | M20: 32 | N20: 224 | O20: 96 | P20: 32 | Q20: 224 | R20: 128 | S20: 32 | T20: 224 | U20: 160 | V20: 32 | W20: 224 | X20: 192 | Y20: 32 | Z20: 224 | AA20: 224 | AB20: 32 | AC20: 224 | AD20: 256
B21: 32 | C21: 256 | D21: 32 | E21: 256 | F21: 0 | G21: 32 | H21: 256 | I21: 32 | J21: 32 | K21: 256 | L21: 64 | M21: 32 | N21: 256 | O21: 96 | P21: 32 | Q21: 256 | R21: 128 | S21: 32 | T21: 256 | U21: 160 | V21: 32 | W21: 256 | X21: 192 | Y21: 32 | Z21: 256 | AA21: 224 | AB21: 32 | AC21: 256 | AD21: 256
B22: =B$20+($A$1/$B$1) -> 64 | C22: 0 | D22: 64 | E22: 0 | F22: 0 | G22: 64 | H22: 0 | I22: 32 | J22: 64 | K22: 0 | L22: 64 | M22: 64 | N22: 0 | O22: 96 | P22: 64 | Q22: 0 | R22: 128 | S22: 64 | T22: 0 | U22: 160 | V22: 64 | W22: 0 | X22: 192 | Y22: 64 | Z22: 0 | AA22: 224 | AB22: 64 | AC22: 0 | AD22: 256
B23: 64 | C23: =C22+($A$1/$B$1) -> 32 | D23: 64 | E23: 32 | F23: 0 | G23: 64 | H23: 32 | I23: 32 | J23: 64 | K23: 32 | L23: 64 | M23: 64 | N23: 32 | O23: 96 | P23: 64 | Q23: 32 | R23: 128 | S23: 64 | T23: 32 | U23: 160 | V23: 64 | W23: 32 | X23: 192 | Y23: 64 | Z23: 32 | AA23: 224 | AB23: 64 | AC23: 32 | AD23: 256
B24: 64 | C24: =C23+($A$1/$B$1) -> 64 | D24: 64 | E24: 64 | F24: 0 | G24: 64 | H24: 64 | I24: 32 | J24: 64 | K24: 64 | L24: 64 | M24: 64 | N24: 64 | O24: 96 | P24: 64 | Q24: 64 | R24: 128 | S24: 64 | T24: 64 | U24: 160 | V24: 64 | W24: 64 | X24: 192 | Y24: 64 | Z24: 64 | AA24: 224 | AB24: 64 | AC24: 64 | AD24: 256
B25: 64 | C25: 96 | D25: 64 | E25: 96 | F25: 0 | G25: 64 | H25: 96 | I25: 32 | J25: 64 | K25: 96 | L25: 64 | M25: 64 | N25: 96 | O25: 96 | P25: 64 | Q25: 96 | R25: 128 | S25: 64 | T25: 96 | U25: 160 | V25: 64 | W25: 96 | X25: 192 | Y25: 64 | Z25: 96 | AA25: 224 | AB25: 64 | AC25: 96 | AD25: 256
B26: 64 | C26: 128 | D26: 64 | E26: 128 | F26: 0 | G26: 64 | H26: 128 | I26: 32 | J26: 64 | K26: 128 | L26: 64 | M26: 64 | N26: 128 | O26: 96 | P26: 64 | Q26: 128 | R26: 128 | S26: 64 | T26: 128 | U26: 160 | V26: 64 | W26: 128 | X26: 192 | Y26: 64 | Z26: 128 | AA26: 224 | AB26: 64 | AC26: 128 | AD26: 256
B27: 64 | C27: 160 | D27: 64 | E27: 160 | F27: 0 | G27: 64 | H27: 160 | I27: 32 | J27: 64 | K27: 160 | L27: 64 | M27: 64 | N27: 160 | O27: 96 | P27: 64 | Q27: 160 | R27: 128 | S27: 64 | T27: 160 | U27: 160 | V27: 64 | W27: 160 | X27: 192 | Y27: 64 | Z27: 160 | AA27: 224 | AB27: 64 | AC27: 160 | AD27: 256
B28: 64 | C28: 192 | D28: 64 | E28: 192 | F28: 0 | G28: 64 | H28: 192 | I28: 32 | J28: 64 | K28: 192 | L28: 64 | M28: 64 | N28: 192 | O28: 96 | P28: 64 | Q28: 192 | R28: 128 | S28: 64 | T28: 192 | U28: 160 | V28: 64 | W28: 192 | X28: 192 | Y28: 64 | Z28: 192 | AA28: 224 | AB28: 64 | AC28: 192 | AD28: 256
B29: 64 | C29: 224 | D29: 64 | E29: 224 | F29: 0 | G29: 64 | H29: 224 | I29: 32 | J29: 64 | K29: 224 | L29: 64 | M29: 64 | N29: 224 | O29: 96 | P29: 64 | Q29: 224 | R29: 128 | S29: 64 | T29: 224 | U29: 160 | V29: 64 | W29: 224 | X29: 192 | Y29: 64 | Z29: 224 | AA29: 224 | AB29: 64 | AC29: 224 | AD29: 256
B30: 64 | C30: 256 | D30: 64 | E30: 256 | F30: 0 | G30: 64 | H30: 256 | I30: 32 | J30: 64 | K30: 256 | L30: 64 | M30: 64 | N30: 256 | O30: 96 | P30: 64 | Q30: 256 | R30: 128 | S30: 64 | T30: 256 | U30: 160 | V30: 64 | W30: 256 | X30: 192 | Y30: 64 | Z30: 256 | AA30: 224 | AB30: 64 | AC30: 256 | AD30: 256
B31: =B$29+($A$1/$B$1) -> 96 | C31: 0 | D31: 96 | E31: 0 | F31: 0 | G31: 96 | H31: 0 | I31: 32 | J31: 96 | K31: 0 | L31: 64 | M31: 96 | N31: 0 | O31: 96 | P31: 96 | Q31: 0 | R31: 128 | S31: 96 | T31: 0 | U31: 160 | V31: 96 | W31: 0 | X31: 192 | Y31: 96 | Z31: 0 | AA31: 224 | AB31: 96 | AC31: 0 | AD31: 256
B32: =B$29+($A$1/$B$1) -> 96 | C32: =C31+($A$1/$B$1) -> 32 | D32: 96 | E32: 32 | F32: 0 | G32: 96 | H32: 32 | I32: 32 | J32: 96 | K32: 32 | L32: 64 | M32: 96 | N32: 32 | O32: 96 | P32: 96 | Q32: 32 | R32: 128 | S32: 96 | T32: 32 | U32: 160 | V32: 96 | W32: 32 | X32: 192 | Y32: 96 | Z32: 32 | AA32: 224 | AB32: 96 | AC32: 32 | AD32: 256
B33: 96 | C33: =C32+($A$1/$B$1) -> 64 | D33: 96 | E33: 64 | F33: 0 | G33: 96 | H33: 64 | I33: 32 | J33: 96 | K33: 64 | L33: 64 | M33: 96 | N33: 64 | O33: 96 | P33: 96 | Q33: 64 | R33: 128 | S33: 96 | T33: 64 | U33: 160 | V33: 96 | W33: 64 | X33: 192 | Y33: 96 | Z33: 64 | AA33: 224 | AB33: 96 | AC33: 64 | AD33: 256
B34: 96 | C34: 96 | D34: 96 | E34: 96 | F34: 0 | G34: 96 | H34: 96 | I34: 32 | J34: 96 | K34: 96 | L34: 64 | M34: 96 | N34: 96 | O34: 96 | P34: 96 | Q34: 96 | R34: 128 | S34: 96 | T34: 96 | U34: 160 | V34: 96 | W34: 96 | X34: 192 | Y34: 96 | Z34: 96 | AA34: 224 | AB34: 96 | AC34: 96 | AD34: 256
B35: 96 | C35: 128 | D35: 96 | E35: 128 | F35: 0 | G35: 96 | H35: 128 | I35: 32 | J35: 96 | K35: 128 | L35: 64 | M35: 96 | N35: 128 | O35: 96 | P35: 96 | Q35: 128 | R35: 128 | S35: 96 | T35: 128 | U35: 160 | V35: 96 | W35: 128 | X35: 192 | Y35: 96 | Z35: 128 | AA35: 224 | AB35: 96 | AC35: 128 | AD35: 256
B36: 96 | C36: 160 | D36: 96 | E36: 160 | F36: 0 | G36: 96 | H36: 160 | I36: 32 | J36: 96 | K36: 160 | L36: 64 | M36: 96 | N36: 160 | O36: 96 | P36: 96 | Q36: 160 | R36: 128 | S36: 96 | T36: 160 | U36: 160 | V36: 96 | W36: 160 | X36: 192 | Y36: 96 | Z36: 160 | AA36: 224 | AB36: 96 | AC36: 160 | AD36: 256
B37: 96 | C37: 192 | D37: 96 | E37: 192 | F37: 0 | G37: 96 | H37: 192 | I37: 32 | J37: 96 | K37: 192 | L37: 64 | M37: 96 | N37: 192 | O37: 96 | P37: 96 | Q37: 192 | R37: 128 | S37: 96 | T37: 192 | U37: 160 | V37: 96 | W37: 192 | X37: 192 | Y37: 96 | Z37: 192 | AA37: 224 | AB37: 96 | AC37: 192 | AD37: 256
B38: 96 | C38: 224 | D38: 96 | E38: 224 | F38: 0 | G38: 96 | H38: 224 | I38: 32 | J38: 96 | K38: 224 | L38: 64 | M38: 96 | N38: 224 | O38: 96 | P38: 96 | Q38: 224 | R38: 128 | S38: 96 | T38: 224 | U38: 160 | V38: 96 | W38: 224 | X38: 192 | Y38: 96 | Z38: 224 | AA38: 224 | AB38: 96 | AC38: 224 | AD38: 256
B39: 96 | C39: 256 | D39: 96 | E39: 256 | F39: 0 | G39: 96 | H39: 256 | I39: 32 | J39: 96 | K39: 256 | L39: 64 | M39: 96 | N39: 256 | O39: 96 | P39: 96 | Q39: 256 | R39: 128 | S39: 96 | T39: 256 | U39: 160 | V39: 96 | W39: 256 | X39: 192 | Y39: 96 | Z39: 256 | AA39: 224 | AB39: 96 | AC39: 256 | AD39: 256
B40: =B$38+($A$1/$B$1) -> 128 | C40: 0 | D40: 128 | E40: 0 | F40: 0 | G40: 128 | H40: 0 | I40: 32 | J40: 128 | K40: 0 | L40: 64 | M40: 128 | N40: 0 | O40: 96 | P40: 128 | Q40: 0 | R40: 128 | S40: 128 | T40: 0 | U40: 160 | V40: 128 | W40: 0 | X40: 192 | Y40: 128 | Z40: 0 | AA40: 224 | AB40: 128 | AC40: 0 | AD40: 256
B41: =B$38+($A$1/$B$1) -> 128 | C41: =C40+($A$1/$B$1) -> 32 | D41: 128 | E41: 32 | F41: 0 | G41: 128 | H41: 32 | I41: 32 | J41: 128 | K41: 32 | L41: 64 | M41: 128 | N41: 32 | O41: 96 | P41: 128 | Q41: 32 | R41: 128 | S41: 128 | T41: 32 | U41: 160 | V41: 128 | W41: 32 | X41: 192 | Y41: 128 | Z41: 32 | AA41: 224 | AB41: 128 | AC41: 32 | AD41: 256
B42: 128 | C42: =C41+($A$1/$B$1) -> 64 | D42: 128 | E42: 64 | F42: 0 | G42: 128 | H42: 64 | I42: 32 | J42: 128 | K42: 64 | L42: 64 | M42: 128 | N42: 64 | O42: 96 | P42: 128 | Q42: 64 | R42: 128 | S42: 128 | T42: 64 | U42: 160 | V42: 128 | W42: 64 | X42: 192 | Y42: 128 | Z42: 64 | AA42: 224 | AB42: 128 | AC42: 64 | AD42: 256
B43: 128 | C43: 96 | D43: 128 | E43: 96 | F43: 0 | G43: 128 | H43: 96 | I43: 32 | J43: 128 | K43: 96 | L43: 64 | M43: 128 | N43: 96 | O43: 96 | P43: 128 | Q43: 96 | R43: 128 | S43: 128 | T43: 96 | U43: 160 | V43: 128 | W43: 96 | X43: 192 | Y43: 128 | Z43: 96 | AA43: 224 | AB43: 128 | AC43: 96 | AD43: 256
B44: 128 | C44: 128 | D44: 128 | E44: 128 | F44: 0 | G44: 128 | H44: 128 | I44: 32 | J44: 128 | K44: 128 | L44: 64 | M44: 128 | N44: 128 | O44: 96 | P44: 128 | Q44: 128 | R44: 128 | S44: 128 | T44: 128 | U44: 160 | V44: 128 | W44: 128 | X44: 192 | Y44: 128 | Z44: 128 | AA44: 224 | AB44: 128 | AC44: 128 | AD44: 256
B45: 128 | C45: 160 | D45: 128 | E45: 160 | F45: 0 | G45: 128 | H45: 160 | I45: 32 | J45: 128 | K45: 160 | L45: 64 | M45: 128 | N45: 160 | O45: 96 | P45: 128 | Q45: 160 | R45: 128 | S45: 128 | T45: 160 | U45: 160 | V45: 128 | W45: 160 | X45: 192 | Y45: 128 | Z45: 160 | AA45: 224 | AB45: 128 | AC45: 160 | AD45: 256
B46: 128 | C46: 192 | D46: 128 | E46: 192 | F46: 0 | G46: 128 | H46: 192 | I46: 32 | J46: 128 | K46: 192 | L46: 64 | M46: 128 | N46: 192 | O46: 96 | P46: 128 | Q46: 192 | R46: 128 | S46: 128 | T46: 192 | U46: 160 | V46: 128 | W46: 192 | X46: 192 | Y46: 128 | Z46: 192 | AA46: 224 | AB46: 128 | AC46: 192 | AD46: 256
B47: 128 | C47: 224 | D47: 128 | E47: 224 | F47: 0 | G47: 128 | H47: 224 | I47: 32 | J47: 128 | K47: 224 | L47: 64 | M47: 128 | N47: 224 | O47: 96 | P47: 128 | Q47: 224 | R47: 128 | S47: 128 | T47: 224 | U47: 160 | V47: 128 | W47: 224 | X47: 192 | Y47: 128 | Z47: 224 | AA47: 224 | AB47: 128 | AC47: 224 | AD47: 256
B48: 128 | C48: 256 | D48: 128 | E48: 256 | F48: 0 | G48: 128 | H48: 256 | I48: 32 | J48: 128 | K48: 256 | L48: 64 | M48: 128 | N48: 256 | O48: 96 | P48: 128 | Q48: 256 | R48: 128 | S48: 128 | T48: 256 | U48: 160 | V48: 128 | W48: 256 | X48: 192 | Y48: 128 | Z48: 256 | AA48: 224 | AB48: 128 | AC48: 256 | AD48: 256
B49: =B$47+($A$1/$B$1) -> 160 | C49: 0 | D49: 160 | E49: 0 | F49: 0 | G49: 160 | H49: 0 | I49: 32 | J49: 160 | K49: 0 | L49: 64 | M49: 160 | N49: 0 | O49: 96 | P49: 160 | Q49: 0 | R49: 128 | S49: 160 | T49: 0 | U49: 160 | V49: 160 | W49: 0 | X49: 192 | Y49: 160 | Z49: 0 | AA49: 224 | AB49: 160 | AC49: 0 | AD49: 256
B50: 160 | C50: =C49+($A$1/$B$1) -> 32 | D50: 160 | E50: 32 | F50: 0 | G50: 160 | H50: 32 | I50: 32 | J50: 160 | K50: 32 | L50: 64 | M50: 160 | N50: 32 | O50: 96 | P50: 160 | Q50: 32 | R50: 128 | S50: 160 | T50: 32 | U50: 160 | V50: 160 | W50: 32 | X50: 192 | Y50: 160 | Z50: 32 | AA50: 224 | AB50: 160 | AC50: 32 | AD50: 256
B51: 160 | C51: =C50+($A$1/$B$1) -> 64 | D51: 160 | E51: 64 | F51: 0 | G51: 160 | H51: 64 | I51: 32 | J51: 160 | K51: 64 | L51: 64 | M51: 160 | N51: 64 | O51: 96 | P51: 160 | Q51: 64 | R51: 128 | S51: 160 | T51: 64 | U51: 160 | V51: 160 | W51: 64 | X51: 192 | Y51: 160 | Z51: 64 | AA51: 224 | AB51: 160 | AC51: 64 | AD51: 256
B52: 160 | C52: 96 | D52: 160 | E52: 96 | F52: 0 | G52: 160 | H52: 96 | I52: 32 | J52: 160 | K52: 96 | L52: 64 | M52: 160 | N52: 96 | O52: 96 | P52: 160 | Q52: 96 | R52: 128 | S52: 160 | T52: 96 | U52: 160 | V52: 160 | W52: 96 | X52: 192 | Y52: 160 | Z52: 96 | AA52: 224 | AB52: 160 | AC52: 96 | AD52: 256
B53: 160 | C53: 128 | D53: 160 | E53: 128 | F53: 0 | G53: 160 | H53: 128 | I53: 32 | J53: 160 | K53: 128 | L53: 64 | M53: 160 | N53: 128 | O53: 96 | P53: 160 | Q53: 128 | R53: 128 | S53: 160 | T53: 128 | U53: 160 | V53: 160 | W53: 128 | X53: 192 | Y53: 160 | Z53: 128 | AA53: 224 | AB53: 160 | AC53: 128 | AD53: 256
B54: 160 | C54: 160 | D54: 160 | E54: 160 | F54: 0 | G54: 160 | H54: 160 | I54: 32 | J54: 160 | K54: 160 | L54: 64 | M54: 160 | N54: 160 | O54: 96 | P54: 160 | Q54: 160 | R54: 128 | S54: 160 | T54: 160 | U54: 160 | V54: 160 | W54: 160 | X54: 192 | Y54: 160 | Z54: 160 | AA54: 224 | AB54: 160 | AC54: 160 | AD54: 256
B55: 160 | C55: 192 | D55: 160 | E55: 192 | F55: 0 | G55: 160 | H55: 192 | I55: 32 | J55: 160 | K55: 192 | L55: 64 | M55: 160 | N55: 192 | O55: 96 | P55: 160 | Q55: 192 | R55: 128 | S55: 160 | T55: 192 | U55: 160 | V55: 160 | W55: 192 | X55: 192 | Y55: 160 | Z55: 192 | AA55: 224 | AB55: 160 | AC55: 192 | AD55: 256
B56: 160 | C56: 224 | D56: 160 | E56: 224 | F56: 0 | G56: 160 | H56: 224 | I56: 32 | J56: 160 | K56: 224 | L56: 64 | M56: 160 | N56: 224 | O56: 96 | P56: 160 | Q56: 224 | R56: 128 | S56: 160 | T56: 224 | U56: 160 | V56: 160 | W56: 224 | X56: 192 | Y56: 160 | Z56: 224 | AA56: 224 | AB56: 160 | AC56: 224 | AD56: 256
B57: 160 | C57: 256 | D57: 160 | E57: 256 | F57: 0 | G57: 160 | H57: 256 | I57: 32 | J57: 160 | K57: 256 | L57: 64 | M57: 160 | N57: 256 | O57: 96 | P57: 160 | Q57: 256 | R57: 128 | S57: 160 | T57: 256 | U57: 160 | V57: 160 | W57: 256 | X57: 192 | Y57: 160 | Z57: 256 | AA57: 224 | AB57: 160 | AC57: 256 | AD57: 256
B58: =B$56+($A$1/$B$1) -> 192 | C58: 0 | D58: 192 | E58: 0 | F58: 0 | G58: 192 | H58: 0 | I58: 32 | J58: 192 | K58: 0 | L58: 64 | M58: 192 | N58: 0 | O58: 96 | P58: 192 | Q58: 0 | R58: 128 | S58: 192 | T58: 0 | U58: 160 | V58: 192 | W58: 0 | X58: 192 | Y58: 192 | Z58: 0 | AA58: 224 | AB58: 192 | AC58: 0 | AD58: 256
B59: =B$56+($A$1/$B$1) -> 192 | C59: =C58+($A$1/$B$1) -> 32 | D59: 192 | E59: 32 | F59: 0 | G59: 192 | H59: 32 | I59: 32 | J59: 192 | K59: 32 | L59: 64 | M59: 192 | N59: 32 | O59: 96 | P59: 192 | Q59: 32 | R59: 128 | S59: 192 | T59: 32 | U59: 160 | V59: 192 | W59: 32 | X59: 192 | Y59: 192 | Z59: 32 | AA59: 224 | AB59: 192 | AC59: 32 | AD59: 256
B60: 192 | C60: =C59+($A$1/$B$1) -> 64 | D60: 192 | E60: 64 | F60: 0 | G60: 192 | H60: 64 | I60: 32 | J60: 192 | K60: 64 | L60: 64 | M60: 192 | N60: 64 | O60: 96 | P60: 192 | Q60: 64 | R60: 128 | S60: 192 | T60: 64 | U60: 160 | V60: 192 | W60: 64 | X60: 192 | Y60: 192 | Z60: 64 | AA60: 224 | AB60: 192 | AC60: 64 | AD60: 256
B61: 192 | C61: 96 | D61: 192 | E61: 96 | F61: 0 | G61: 192 | H61: 96 | I61: 32 | J61: 192 | K61: 96 | L61: 64 | M61: 192 | N61: 96 | O61: 96 | P61: 192 | Q61: 96 | R61: 128 | S61: 192 | T61: 96 | U61: 160 | V61: 192 | W61: 96 | X61: 192 | Y61: 192 | Z61: 96 | AA61: 224 | AB61: 192 | AC61: 96 | AD61: 256
B62: =B$56+($A$1/$B$1) -> 192 | C62: 128 | D62: 192 | E62: 128 | F62: 0 | G62: 192 | H62: 128 | I62: 32 | J62: 192 | K62: 128 | L62: 64 | M62: 192 | N62: 128 | O62: 96 | P62: 192 | Q62: 128 | R62: 128 | S62: 192 | T62: 128 | U62: 160 | V62: 192 | W62: 128 | X62: 192 | Y62: 192 | Z62: 128 | AA62: 224 | AB62: 192 | AC62: 128 | AD62: 256
B63: 192 | C63: 160 | D63: 192 | E63: 160 | F63: 0 | G63: 192 | H63: 160 | I63: 32 | J63: 192 | K63: 160 | L63: 64 | M63: 192 | N63: 160 | O63: 96 | P63: 192 | Q63: 160 | R63: 128 | S63: 192 | T63: 160 | U63: 160 | V63: 192 | W63: 160 | X63: 192 | Y63: 192 | Z63: 160 | AA63: 224 | AB63: 192 | AC63: 160 | AD63: 256
B64: 192 | C64: 192 | D64: 192 | E64: 192 | F64: 0 | G64: 192 | H64: 192 | I64: 32 | J64: 192 | K64: 192 | L64: 64 | M64: 192 | N64: 192 | O64: 96 | P64: 192 | Q64: 192 | R64: 128 | S64: 192 | T64: 192 | U64: 160 | V64: 192 | W64: 192 | X64: 192 | Y64: 192 | Z64: 192 | AA64: 224 | AB64: 192 | AC64: 192 | AD64: 256
B65: 192 | C65: 224 | D65: 192 | E65: 224 | F65: 0 | G65: 192 | H65: 224 | I65: 32 | J65: 192 | K65: 224 | L65: 64 | M65: 192 | N65: 224 | O65: 96 | P65: 192 | Q65: 224 | R65: 128 | S65: 192 | T65: 224 | U65: 160 | V65: 192 | W65: 224 | X65: 192 | Y65: 192 | Z65: 224 | AA65: 224 | AB65: 192 | AC65: 224 | AD65: 256
B66: 192 | C66: 256 | D66: 192 | E66: 256 | F66: 0 | G66: 192 | H66: 256 | I66: 32 | J66: 192 | K66: 256 | L66: 64 | M66: 192 | N66: 256 | O66: 96 | P66: 192 | Q66: 256 | R66: 128 | S66: 192 | T66: 256 | U66: 160 | V66: 192 | W66: 256 | X66: 192 | Y66: 192 | Z66: 256 | AA66: 224 | AB66: 192 | AC66: 256 | AD66: 256
B67: =B$65+($A$1/$B$1) -> 224 | C67: 0 | D67: 224 | E67: 0 | F67: 0 | G67: 224 | H67: 0 | I67: 32 | J67: 224 | K67: 0 | L67: 64 | M67: 224 | N67: 0 | O67: 96 | P67: 224 | Q67: 0 | R67: 128 | S67: 224 | T67: 0 | U67: 160 | V67: 224 | W67: 0 | X67: 192 | Y67: 224 | Z67: 0 | AA67: 224 | AB67: 224 | AC67: 0 | AD67: 256
B68: 224 | C68: =C67+($A$1/$B$1) -> 32 | D68: 224 | E68: 32 | F68: 0 | G68: 224 | H68: 32 | I68: 32 | J68: 224 | K68: 32 | L68: 64 | M68: 224 | N68: 32 | O68: 96 | P68: 224 | Q68: 32 | R68: 128 | S68: 224 | T68: 32 | U68: 160 | V68: 224 | W68: 32 | X68: 192 | Y68: 224 | Z68: 32 | AA68: 224 | AB68: 224 | AC68: 32 | AD68: 256
B69: 224 | C69: =C68+($A$1/$B$1) -> 64 | D69: 224 | E69: 64 | F69: =F$3 -> 0 | G69: 224 | H69: 64 | I69: =I$3 -> 32 | J69: 224 | K69: 64 | L69: =L$3 -> 64 | M69: 224 | N69: 64 | O69: =O$3 -> 96 | P69: 224 | Q69: 64 | R69: =R$3 -> 128 | S69: 224 | T69: 64 | U69: =U$3 -> 160 | V69: 224 | W69: 64 | X69: =X$3 -> 192 | Y69: 224 | Z69: 64 | AA69: =AA$3 -> 224 | AB69: 224 | AC69: 64 | AD69: =AD$3 -> 256
B70: 224 | C70: 96 | D70: 224 | E70: =$C70 -> 96 | F70: 0 | G70: 224 | H70: =$C70 -> 96 | I70: 32 | J70: 224 | K70: =$C70 -> 96 | L70: 64 | M70: 224 | N70: =$C70 -> 96 | O70: 96 | P70: 224 | Q70: =$C70 -> 96 | R70: 128 | S70: 224 | T70: =$C70 -> 96 | U70: 160 | V70: 224 | W70: =$C70 -> 96 | X70: 192 | Y70: 224 | Z70: =$C70 -> 96 | AA70: 224 | AB70: 224 | AC70: =$C70 -> 96 | AD70: 256
B71: 224 | C71: 128 | D71: =$B71 -> 224 | E71: 128 | F71: 0 | G71: =$B71 -> 224 | H71: 128 | I71: 32 | J71: =$B71 -> 224 | K71: 128 | L71: 64 | M71: =$B71 -> 224 | N71: 128 | O71: 96 | P71: =$B71 -> 224 | Q71: 128 | R71: 128 | S71: =$B71 -> 224 | T71: 128 | U71: 160 | V71: =$B71 -> 224 | W71: 128 | X71: 192 | Y71: =$B71 -> 224 | Z71: 128 | AA71: 224 | AB71: =$B71 -> 224 | AC71: 128 | AD71: 256
B72: 224 | C72: 160 | D72: 224 | E72: 160 | F72: 0 | G72: 224 | H72: 160 | I72: 32 | J72: 224 | K72: 160 | L72: 64 | M72: 224 | N72: 160 | O72: 96 | P72: 224 | Q72: 160 | R72: 128 | S72: 224 | T72: 160 | U72: 160 | V72: 224 | W72: 160 | X72: 192 | Y72: 224 | Z72: 160 | AA72: 224 | AB72: 224 | AC72: 160 | AD72: 256
B73: 224 | C73: 192 | D73: 224 | E73: 192 | F73: 0 | G73: 224 | H73: 192 | I73: 32 | J73: 224 | K73: 192 | L73: 64 | M73: 224 | N73: 192 | O73: 96 | P73: 224 | Q73: 192 | R73: 128 | S73: 224 | T73: 192 | U73: 160 | V73: 224 | W73: 192 | X73: 192 | Y73: 224 | Z73: 192 | AA73: 224 | AB73: 224 | AC73: 192 | AD73: 256
B74: 224 | C74: 224 | D74: 224 | E74: 224 | F74: 0 | G74: 224 | H74: 224 | I74: 32 | J74: 224 | K74: 224 | L74: 64 | M74: 224 | N74: 224 | O74: 96 | P74: 224 | Q74: 224 | R74: 128 | S74: 224 | T74: 224 | U74: 160 | V74: 224 | W74: 224 | X74: 192 | Y74: 224 | Z74: 224 | AA74: 224 | AB74: 224 | AC74: 224 | AD74: 256
B75: 224 | C75: 256 | D75: 224 | E75: 256 | F75: 0 | G75: 224 | H75: 256 | I75: 32 | J75: 224 | K75: 256 | L75: 64 | M75: 224 | N75: 256 | O75: 96 | P75: 224 | Q75: 256 | R75: 128 | S75: 224 | T75: 256 | U75: 160 | V75: 224 | W75: 256 | X75: 192 | Y75: 224 | Z75: 256 | AA75: 224 | AB75: 224 | AC75: 256 | AD75: 256
B76: =B$74+($A$1/$B$1) -> 256 | C76: 0 | D76: 256 | E76: 0 | F76: 0 | G76: 256 | H76: 0 | I76: 32 | J76: 256 | K76: 0 | L76: 64 | M76: 256 | N76: 0 | O76: 96 | P76: 256 | Q76: 0 | R76: 128 | S76: 256 | T76: 0 | U76: 160 | V76: 256 | W76: 0 | X76: 192 | Y76: 256 | Z76: 0 | AA76: 224 | AB76: 256 | AC76: 0 | AD76: 256
B77: =B$74+($A$1/$B$1) -> 256 | C77: =C76+($A$1/$B$1) -> 32 | D77: 256 | E77: 32 | F77: 0 | G77: 256 | H77: 32 | I77: 32 | J77: 256 | K77: 32 | L77: 64 | M77: 256 | N77: 32 | O77: 96 | P77: 256 | Q77: 32 | R77: 128 | S77: 256 | T77: 32 | U77: 160 | V77: 256 | W77: 32 | X77: 192 | Y77: 256 | Z77: 32 | AA77: 224 | AB77: 256 | AC77: 32 | AD77: 256
B78: 256 | C78: =C77+($A$1/$B$1) -> 64 | D78: 256 | E78: 64 | F78: 0 | G78: 256 | H78: 64 | I78: 32 | J78: 256 | K78: 64 | L78: 64 | M78: 256 | N78: 64 | O78: 96 | P78: 256 | Q78: 64 | R78: 128 | S78: 256 | T78: 64 | U78: 160 | V78: 256 | W78: 64 | X78: 192 | Y78: 256 | Z78: 64 | AA78: 224 | AB78: 256 | AC78: 64 | AD78: 256
B79: 256 | C79: 96 | D79: 256 | E79: 96 | F79: 0 | G79: 256 | H79: 96 | I79: 32 | J79: 256 | K79: 96 | L79: 64 | M79: 256 | N79: 96 | O79: 96 | P79: 256 | Q79: 96 | R79: 128 | S79: 256 | T79: 96 | U79: 160 | V79: 256 | W79: 96 | X79: 192 | Y79: 256 | Z79: 96 | AA79: 224 | AB79: 256 | AC79: 96 | AD79: 256
B80: 256 | C80: 128 | D80: 256 | E80: 128 | F80: 0 | G80: 256 | H80: 128 | I80: 32 | J80: 256 | K80: 128 | L80: 64 | M80: 256 | N80: 128 | O80: 96 | P80: 256 | Q80: 128 | R80: 128 | S80: 256 | T80: 128 | U80: 160 | V80: 256 | W80: 128 | X80: 192 | Y80: 256 | Z80: 128 | AA80: 224 | AB80: 256 | AC80: 128 | AD80: 256
B81: 256 | C81: 160 | D81: 256 | E81: 160 | F81: 0 | G81: 256 | H81: 160 | I81: 32 | J81: 256 | K81: 160 | L81: 64 | M81: 256 | N81: 160 | O81: 96 | P81: 256 | Q81: 160 | R81: 128 | S81: 256 | T81: 160 | U81: 160 | V81: 256 | W81: 160 | X81: 192 | Y81: 256 | Z81: 160 | AA81: 224 | AB81: 256 | AC81: 160 | AD81: 256
B82: 256 | C82: 192 | D82: 256 | E82: 192 | F82: 0 | G82: 256 | H82: 192 | I82: 32 | J82: 256 | K82: 192 | L82: 64 | M82: 256 | N82: 192 | O82: 96 | P82: 256 | Q82: 192 | R82: 128 | S82: 256 | T82: 192 | U82: 160 | V82: 256 | W82: 192 | X82: 192 | Y82: 256 | Z82: 192 | AA82: 224 | AB82: 256 | AC82: 192 | AD82: 256
B83: 256 | C83: 224 | D83: 256 | E83: 224 | F83: 0 | G83: 256 | H83: 224 | I83: 32 | J83: 256 | K83: 224 | L83: 64 | M83: 256 | N83: 224 | O83: 96 | P83: 256 | Q83: 224 | R83: 128 | S83: 256 | T83: 224 | U83: 160 | V83: 256 | W83: 224 | X83: 192 | Y83: 256 | Z83: 224 | AA83: 224 | AB83: 256 | AC83: 224 | AD83: 256
B84: 256 | C84: 256 | D84: 256 | E84: 256 | F84: 0 | G84: 256 | H84: 256 | I84: 32 | J84: 256 | K84: 256 | L84: 64 | M84: 256 | N84: 256 | O84: 96 | P84: 256 | Q84: 256 | R84: 128 | S84: 256 | T84: 256 | U84: 160 | V84: 256 | W84: 256 | X84: 192 | Y84: 256 | Z84: 256 | AA84: 224 | AB84: 256 | AC84: 256 | AD84: 256

Sheet Cover
B1: RGB | J1: BGR | R1: GBR | Z1: BRG | AH1: RBG | AP1: GRB
